Workbook

Sheet Cover
B2: Affordability Calculator for healthcare interventions to promote and assist tobacco cessation v1.8
B4: This tool allows you to calculate the affordability, using a WHO definition, of tobacco cessation interventions in your country. These estimates can then be used as a basis for considering which interventions to prioritise.
B5: Note: you may need to enable macros to run the tool. Click here for guidance go to http://bit.ly/ExcelMacros
B6: For more information: | C6: The tool uses data from the accompanying international review of efficacy and effectiveness and other standard sources:
C7: West R, Raw M, McNeill A, Stead L, Aveyard P, Britton J, Stapleton J, McRobbie H, Pokhrel S, Lester-George, A, Borland R. Healthcare interventions to promote and assist tobacco cessation: a review of efficacy, effectiveness and affordability for use in national guideline development. 2014, manuscript in preparation.

Sheet Legacy
C2: Affordability Calculator for healthcare interventions to promote and assist tobacco cessation v1.1 (Excel Legacy view)
C5: Country: | E5: Income category: | F5: Region: | H5: Per capita GDP: | I5: Physician salary: | K5: Other Health Worker salary:
E6: =IFERROR(VLOOKUP('UI Controls'!B1,'Country Coding'!A:F,6,0),"") ->  | F6: =IFERROR(VLOOKUP('UI Controls'!B2,'Country Coding'!$E:$J,6,0),"") ->  | H6: =IFERROR('UI Controls'!B4,"") -> 9928.038098 | I6: =IFERROR('UI Controls'!B7,"") -> 65194 | J6: =IFERROR('UI Controls'!C7,"") -> 97.01488095 | K6: =IFERROR('UI Controls'!B8,"") -> 40265 | L6: =IFERROR('UI Controls'!C8,"") -> 59.91815476
E7: Enter a comment if you wish | L7: ICER at unity:
L8: =IFERROR('UI Controls'!B5,"") -> 130
C10: Intervention | E10: Effect (%pt increase in 12-month success rates) | F10: Physician hrs | G10: Other health worker hrs | H10: Unit manpower cost (international dollars) | I10: Unit materials/drug cost | J10: Total cost (international dollars) | K10: ICER | L10: Affordability: >1=affordable
A11: 1 | C11: Brief advice | E11: 2 | F11: 0.6 | G11: 0 | H11: =F11*'UI Controls'!C7+G11*'UI Controls'!C8 -> 58.20892857 | I11: =SUMIFS(OFFSET(Interventions!$A:$A,0,MATCH(I$10,Interventions!$1:$1,0)-1),Interventions!$C:$C,$A11,Interventions!$A:$A,CurrentCountry) -> 0 | J11: =SUM(H11:I11) -> 58.20892857 | K11: =L8*J11/E11 -> 3783.580357 | L11: =IFERROR('UI Controls'!$B$4/K11,0) -> 2.623979713
A12: 2 | C12: Behavioural support: in person | E12: 4 | F12: 0 | G12: 3 | H12: =F12*'UI Controls'!C7+G12*'UI Controls'!C8 -> 179.7544643 | I12: =SUMIFS(OFFSET(Interventions!$A:$A,0,MATCH(I$10,Interventions!$1:$1,0)-1),Interventions!$C:$C,$A12,Interventions!$A:$A,CurrentCountry) -> 0 | J12: =SUM(H12:I12) -> 179.7544643 | K12: =L8*J12/E12 -> 5842.020089 | L12: =IFERROR('UI Controls'!$B$4/K12,0) -> 1.699418685
A13: 3 | C13: Behavioural support: telephone | E13: 3 | F13: 0 | G13: 2 | H13: =F13*'UI Controls'!C7+G13*'UI Controls'!C8 -> 119.8363095 | I13: =SUMIFS(OFFSET(Interventions!$A:$A,0,MATCH(I$10,Interventions!$1:$1,0)-1),Interventions!$C:$C,$A13,Interventions!$A:$A,CurrentCountry) -> 0 | J13: 119.8363095 | K13: =L8*J13/E13 -> 5192.906746 | L13: =IFERROR('UI Controls'!$B$4/K13,0) -> 1.911846021
A14: 4 | C14: Text messaging | E14: 4 | F14: 0 | G14: 0 | H14: =F14*'UI Controls'!C7+G14*'UI Controls'!C8 -> 0 | I14: =SUMIFS(OFFSET(Interventions!$A:$A,0,MATCH(I$10,Interventions!$1:$1,0)-1),Interventions!$C:$C,$A14,Interventions!$A:$A,CurrentCountry) -> 0 | J14: 0 | K14: =L8*J14/E14 -> 0 | L14: =IFERROR('UI Controls'!$B$4/K14,0) -> 0
A15: 5 | C15: Printed materials | E15: 2 | F15: 0 | G15: 0.2 | H15: =F15*'UI Controls'!C7+G15*'UI Controls'!C8 -> 11.98363095 | I15: =SUMIFS(OFFSET(Interventions!$A:$A,0,MATCH(I$10,Interventions!$1:$1,0)-1),Interventions!$C:$C,$A15,Interventions!$A:$A,CurrentCountry) -> 0 | J15: 11.98363095 | K15: =L8*J15/E15 -> 778.9360119 | L15: =IFERROR('UI Controls'!$B$4/K15,0) -> 12.74564014
A16: 6 | C16: Single form NRT | E16: 6 | F16: 0.6 | G16: 0 | H16: =F16*'UI Controls'!C7+G16*'UI Controls'!C8 -> 58.20892857 | I16: =SUMIFS(OFFSET(Interventions!$A:$A,0,MATCH(I$10,Interventions!$1:$1,0)-1),Interventions!$C:$C,$A16,Interventions!$A:$A,CurrentCountry) -> 0 | J16: 58.20892857 | K16: =L8*J16/E16 -> 1261.193452 | L16: =IFERROR('UI Controls'!$B$4/K16,0) -> 7.871939138
A17: 7 | C17: Bupropion | E17: 7 | F17: 1 | G17: 0 | H17: =F17*'UI Controls'!C7+G17*'UI Controls'!C8 -> 97.01488095 | I17: =SUMIFS(OFFSET(Interventions!$A:$A,0,MATCH(I$10,Interventions!$1:$1,0)-1),Interventions!$C:$C,$A17,Interventions!$A:$A,CurrentCountry) -> 0 | J17: 97.01488095 | K17: =L8*J17/E17 -> 1801.704932 | L17: =IFERROR('UI Controls'!$B$4/K17,0) -> 5.510357397
A18: 8 | C18: Nortriptyline | E18: 10 | F18: 2 | G18: 0 | H18: =F18*'UI Controls'!C7+G18*'UI Controls'!C8 -> 194.0297619 | I18: =SUMIFS(OFFSET(Interventions!$A:$A,0,MATCH(I$10,Interventions!$1:$1,0)-1),Interventions!$C:$C,$A18,Interventions!$A:$A,CurrentCountry) -> 0 | J18: 194.0297619 | K18: =L8*J18/E18 -> 2522.386905 | L18: =IFERROR('UI Controls'!$B$4/K18,0) -> 3.935969569
A19: 9 | C19: Varenicline | E19: 15 | F19: 1 | G19: 0 | H19: =F19*'UI Controls'!C7+G19*'UI Controls'!C8 -> 97.01488095 | I19: =SUMIFS(OFFSET(Interventions!$A:$A,0,MATCH(I$10,Interventions!$1:$1,0)-1),Interventions!$C:$C,$A19,Interventions!$A:$A,CurrentCountry) -> 0 | J19: 97.01488095 | K19: =L8*J19/E19 -> 840.7956349 | L19: =IFERROR('UI Controls'!$B$4/K19,0) -> 11.80790871
A20: 10 | C20: Cytisine | E20: 6 | F20: 0.6 | G20: 0 | H20: =F20*'UI Controls'!C7+G20*'UI Controls'!C8 -> 58.20892857 | I20: =SUMIFS(OFFSET(Interventions!$A:$A,0,MATCH(I$10,Interventions!$1:$1,0)-1),Interventions!$C:$C,$A20,Interventions!$A:$A,CurrentCountry) -> 0 | J20: 58.20892857 | K20: =L8*J20/E20 -> 1261.193452 | L20: =IFERROR('UI Controls'!$B$4/K20,0) -> 7.871939138
C21: Combination therapies:
A22: 11 | C22: In person support+ single NRT | E22: 10 | F22: 0.6 | G22: 4 | H22: =F22*'UI Controls'!C7+G22*'UI Controls'!C8 -> 297.8815476 | I22: =SUMIFS(OFFSET(Interventions!$A:$A,0,MATCH(I$10,Interventions!$1:$1,0)-1),Interventions!$C:$C,$A22,Interventions!$A:$A,CurrentCountry) -> 0 | J22: =SUM(H22:I22) -> 297.8815476 | K22: =L8*J22/E22 -> 3872.460119 | L22: =IFERROR('UI Controls'!$B$4/K22,0) -> 2.563754769
A23: 12 | C23: Dual NRT | E23: 11 | F23: 0.6 | G23: 0 | H23: =F23*'UI Controls'!C7+G23*'UI Controls'!C8 -> 58.20892857 | I23: =SUMIFS(OFFSET(Interventions!$A:$A,0,MATCH(I$10,Interventions!$1:$1,0)-1),Interventions!$C:$C,$A23,Interventions!$A:$A,CurrentCountry) -> 0 | J23: =SUM(H23:I23) -> 58.20892857 | K23: =L8*J23/E23 -> 687.9237013 | L23: =IFERROR('UI Controls'!$B$4/K23,0) -> 14.43188842
A24: 13 | C24: In person support+ dual NRT | E24: 21 | F24: 0.6 | G24: 4 | H24: =F24*'UI Controls'!C7+G24*'UI Controls'!C8 -> 297.8815476 | I24: =SUMIFS(OFFSET(Interventions!$A:$A,0,MATCH(I$10,Interventions!$1:$1,0)-1),Interventions!$C:$C,$A24,Interventions!$A:$A,CurrentCountry) -> 0 | J24: =SUM(H24:I24) -> 297.8815476 | K24: =L8*J24/E24 -> 1844.028628 | L24: =IFERROR('UI Controls'!$B$4/K24,0) -> 5.383885015
C26: Notes:
C27: 1 | D27: All costs are in international dollars. See http://mdgs.un.org/unsd/mdg/SeriesDetail.aspx?srid=699 for conversion table
C28: 2 | D28: ICER at unity =cost per life year gained per 1 percentage point increase in 6 month cessation rate in UK for 35-54 age group, if the incremental cost of implementation per smoker treated is $1. A 3.5% temporal discounting is applied. The data is from Stapleton et al. (2011)
C29: 3 | D29: ICER at unity may differ from country to country; we suggest to leave as is, unless you have good evidence that it is different, or want to do a sensitivity analysis. Higher ratios mean that stopping smoking is less beneficial in that country.
C30: 4 | D30: If the ICER = per capita GDP, then affordability = 1 and any ratio of 1 or better should be considered as good value (see review)
C31: 5 | D31: Physician cost per hour is based on annual salary for medical officer from http://www.who.int/choice/costs/prog_costs/ , assuming 4 weeks paid holiday and 35 hour week, with 100% additional costs for accommodation, servicing and on-costs (2005 data)
C32: 6 | D32: Other worker cost per hour is based on annual salary for a registered nurse from http://www.who.int/choice/costs/prog_costs/ , assuming 4 weeks paid holiday and 35 hour week with 100% additional costs for accommodation, servicing and on-costs (2005 data)
C33: 7 | D33: Per capita GDP is taken from http://data.worldbank.org/indicator/NY.GDP.PCAP.PP.CD
C34: 8 | D34: Physician hours per treatment is based on estimated contact time plus 100% for training and additional administrative work
C35: 9 | D35: Other worker hours per treatment is based on estimated contact time plus 100% for training and additional administrative work
C36: 10 | D36: Text messaging costs are based on telecon costs plus set up costs spread over large number of users and promotion
C37: 11 | D37: Internet costs are based on hosting costs plus texting costs plus set up costs spread over large number of users and promotion
C38: 12 | D38: Medication costs are based on actual prices or projected prices if the drug were to be available derived from costs where currently available
C39: 13 | D39: Physician time for medications is based on side-effect profile that would need managing
C40: 14 | D40: Effects for combinations involve adding effects for components
C41: 15 | D41: Medication costs are obtained from local sources
C42: 16 | D42: GDP - 2011 data

Sheet UI Controls
A1: Current Country
A2: Current WHO subregion
A3: Current GDP Year | B3: 2013
A4: Current GDP | B4: 9928.038098
A5: ICER at unity | B5: 130
A6: Inflator | B6: 1.25
A7: Current Physician Salary | B7: 65194 | C7: =B7/48/35*2*$B$6 -> 97.01488095 | D7: (Annual | Hourly)
A8: Current Nurse Salary | B8: 40265 | C8: =B8/48/35*2*$B$6 -> 59.91815476 | D8: (Annual | Hourly)
A9: Sheets Unlocked | B9: -1
A10: Current Currency | B10: $
A11: Conversion Factor | B11: 1
A12: Language | B12: English

Sheet Interventions
A1: Country | B1: Intervention | C1: IndNo | D1: Effect | E1: Physician hrs | F1: Other health worker hrs | H1: Unit materials/drug cost
A2: BRA | B2: Brief advice | C2: 1 | D2: 2 | E2: 0.6 | F2: 0 | G2: 0 | H2: 0 | I2: Brazil
A3: BRA | B3: Behavioural support: in person | C3: 2 | D3: 4 | E3: 0 | F3: 3 | H3: 0 | I3: Brazil
A4: BRA | B4: Behavioural support: telephone | C4: 3 | D4: 3 | E4: 0 | F4: 2 | H4: 0 | I4: Brazil
A5: BRA | B5: Text messaging | C5: 4 | D5: 4 | E5: 0 | F5: 0 | H5: 10 | I5: Brazil
A6: BRA | B6: Printed materials | C6: 5 | D6: 2 | E6: 0 | F6: 0.2 | H6: 10 | I6: Brazil
A7: BRA | B7: Single form NRT | C7: 6 | D7: 6 | E7: 0.6 | F7: 0 | H7: 150 | I7: Brazil
A8: BRA | B8: Bupropion | C8: 7 | D8: 7 | E8: 1 | F8: 0 | H8: 100 | I8: Brazil
A9: BRA | B9: Nortriptyline | C9: 8 | D9: 10 | E9: 2 | F9: 0 | H9: 20 | I9: Brazil
A10: BRA | B10: Varenicline | C10: 9 | D10: 15 | E10: 1 | F10: 0 | H10: 300 | I10: Brazil
A11: BRA | B11: Cytisine | C11: 10 | D11: 6 | E11: 0.6 | F11: 0 | H11: 20 | I11: Brazil
A12: BRA | B12: In person support+ single NRT | C12: 11 | D12: 10 | E12: 0.6 | F12: 4 | H12: 150 | I12: Brazil
A13: BRA | B13: Dual NRT | C13: 12 | D13: 11 | E13: 0.6 | F13: 0 | H13: 300 | I13: Brazil
A14: BRA | B14: In person support+ dual NRT | C14: 13 | D14: 21 | E14: 0.6 | F14: 4 | H14: 300 | I14: Brazil
A15: CHN | B15: Brief advice | C15: 1 | D15: 2 | E15: 0.6 | F15: 0 | H15: 0 | I15: China
A16: CHN | B16: Behavioural support: in person | C16: 2 | D16: 4 | E16: 0 | F16: 3 | H16: 0 | I16: China
A17: CHN | B17: Behavioural support: telephone | C17: 3 | D17: 3 | E17: 0 | F17: 2 | H17: 0 | I17: China
A18: CHN | B18: Text messaging | C18: 4 | D18: 4 | E18: 0 | F18: 0 | H18: 10 | I18: China
A19: CHN | B19: Printed materials | C19: 5 | D19: 2 | E19: 0 | F19: 0.2 | H19: 10 | I19: China
A20: CHN | B20: Single form NRT | C20: 6 | D20: 6 | E20: 0.6 | F20: 0 | H20: 150 | I20: China
A21: CHN | B21: Bupropion | C21: 7 | D21: 7 | E21: 1 | F21: 0 | H21: 100 | I21: China
A22: CHN | B22: Nortriptyline | C22: 8 | D22: 10 | E22: 2 | F22: 0 | H22: 20 | I22: China
A23: CHN | B23: Varenicline | C23: 9 | D23: 15 | E23: 1 | F23: 0 | H23: 300 | I23: China
A24: CHN | B24: Cytisine | C24: 10 | D24: 6 | E24: 0.6 | F24: 0 | H24: 20 | I24: China
A25: CHN | B25: In person support+ single NRT | C25: 11 | D25: 10 | E25: 0.6 | F25: 4 | H25: 150 | I25: China
A26: CHN | B26: Dual NRT | C26: 12 | D26: 11 | E26: 0.6 | F26: 0 | H26: 300 | I26: China
A27: CHN | B27: In person support+ dual NRT | C27: 13 | D27: 21 | E27: 0.6 | F27: 4 | H27: 300 | I27: China
A28: CZE | B28: Brief advice | C28: 1 | D28: 2 | E28: 0.6 | F28: 0 | G28: 0 | H28: 0 | I28: Czech Republic
A29: CZE | B29: Behavioural support: in person | C29: 2 | D29: 4 | E29: 0 | F29: 3 | G29: 0 | H29: 0 | I29: Czech Republic
A30: CZE | B30: Behavioural support: telephone | C30: 3 | D30: 3 | E30: 0 | F30: 2 | G30: 0 | H30: 0 | I30: Czech Republic
A31: CZE | B31: Text messaging | C31: 4 | D31: 4 | E31: 0 | F31: 0 | G31: 0 | H31: 10 | I31: Czech Republic
A32: CZE | B32: Printed materials | C32: 5 | D32: 2 | E32: 0 | F32: 0.2 | G32: 0 | H32: 10 | I32: Czech Republic
A33: CZE | B33: Single form NRT | C33: 6 | D33: 6 | E33: 0.6 | F33: 0 | G33: 0 | H33: 150 | I33: Czech Republic
A34: CZE | B34: Bupropion | C34: 7 | D34: 7 | E34: 1 | F34: 0 | G34: 0 | H34: 100 | I34: Czech Republic
A35: CZE | B35: Nortriptyline | C35: 8 | D35: 10 | E35: 2 | F35: 0 | G35: 0 | H35: 20 | I35: Czech Republic
A36: CZE | B36: Varenicline | C36: 9 | D36: 15 | E36: 1 | F36: 0 | G36: 0 | H36: 300 | I36: Czech Republic
A37: CZE | B37: Cytisine | C37: 10 | D37: 6 | E37: 0.6 | F37: 0 | G37: 0 | H37: 20 | I37: Czech Republic
A38: CZE | B38: In person support+ single NRT | C38: 11 | D38: 10 | E38: 0.6 | F38: 4 | G38: 0 | H38: 150 | I38: Czech Republic
A39: CZE | B39: Dual NRT | C39: 12 | D39: 11 | E39: 0.6 | F39: 0 | G39: 0 | H39: 300 | I39: Czech Republic
A40: CZE | B40: In person support+ dual NRT | C40: 13 | D40: 21 | E40: 0.6 | F40: 4 | G40: 0 | H40: 300 | I40: Czech Republic
A41: EGY | B41: Brief advice | C41: 1 | D41: 2 | E41: 0.6 | F41: 0 | H41: 0 | I41: Egypt
A42: EGY | B42: Behavioural support: in person | C42: 2 | D42: 4 | E42: 0 | F42: 3 | H42: 0 | I42: Egypt
A43: EGY | B43: Behavioural support: telephone | C43: 3 | D43: 3 | E43: 0 | F43: 2 | H43: 0 | I43: Egypt
A44: EGY | B44: Text messaging | C44: 4 | D44: 4 | E44: 0 | F44: 0 | H44: 10 | I44: Egypt
A45: EGY | B45: Printed materials | C45: 5 | D45: 2 | E45: 0 | F45: 0.2 | H45: 10 | I45: Egypt
A46: EGY | B46: Single form NRT | C46: 6 | D46: 6 | E46: 0.6 | F46: 0 | H46: 150 | I46: Egypt
A47: EGY | B47: Bupropion | C47: 7 | D47: 7 | E47: 1 | F47: 0 | H47: 100 | I47: Egypt
A48: EGY | B48: Nortriptyline | C48: 8 | D48: 10 | E48: 2 | F48: 0 | H48: 20 | I48: Egypt
A49: EGY | B49: Varenicline | C49: 9 | D49: 15 | E49: 1 | F49: 0 | H49: 300 | I49: Egypt
A50: EGY | B50: Cytisine | C50: 10 | D50: 6 | E50: 0.6 | F50: 0 | H50: 20 | I50: Egypt
A51: EGY | B51: In person support+ single NRT | C51: 11 | D51: 10 | E51: 0.6 | F51: 4 | H51: 150 | I51: Egypt
A52: EGY | B52: Dual NRT | C52: 12 | D52: 11 | E52: 0.6 | F52: 0 | H52: 300 | I52: Egypt
A53: EGY | B53: In person support+ dual NRT | C53: 13 | D53: 21 | E53: 0.6 | F53: 4 | H53: 300 | I53: Egypt
A54: IND | B54: Brief advice | C54: 1 | D54: 2 | E54: 0.6 | F54: 0 | H54: 0 | I54: India
A55: IND | B55: Behavioural support: in person | C55: 2 | D55: 4 | E55: 0 | F55: 3 | H55: 0 | I55: India
A56: IND | B56: Behavioural support: telephone | C56: 3 | D56: 3 | E56: 0 | F56: 2 | H56: 0 | I56: India
A57: IND | B57: Text messaging | C57: 4 | D57: 4 | E57: 0 | F57: 0 | H57: 10 | I57: India
A58: IND | B58: Printed materials | C58: 5 | D58: 2 | E58: 0 | F58: 0.2 | H58: 10 | I58: India
A59: IND | B59: Single form NRT | C59: 6 | D59: 6 | E59: 0.6 | F59: 0 | H59: 150 | I59: India
A60: IND | B60: Bupropion | C60: 7 | D60: 7 | E60: 1 | F60: 0 | H60: 100 | I60: India
A61: IND | B61: Nortriptyline | C61: 8 | D61: 10 | E61: 2 | F61: 0 | H61: 20 | I61: India
A62: IND | B62: Varenicline | C62: 9 | D62: 15 | E62: 1 | F62: 0 | H62: 300 | I62: India
A63: IND | B63: Cytisine | C63: 10 | D63: 6 | E63: 0.6 | F63: 0 | H63: 20 | I63: India
A64: IND | B64: In person support+ single NRT | C64: 11 | D64: 10 | E64: 0.6 | F64: 4 | H64: 150 | I64: India
A65: IND | B65: Dual NRT | C65: 12 | D65: 11 | E65: 0.6 | F65: 0 | H65: 300 | I65: India
A66: IND | B66: In person support+ dual NRT | C66: 13 | D66: 21 | E66: 0.6 | F66: 4 | H66: 300 | I66: India
A67: NPL | B67: Brief advice | C67: 1 | D67: 2 | E67: 0.3 | F67: 0 | G67: 0 | H67: 0 | I67: Nepal
A68: NPL | B68: Behavioural support: in person | C68: 2 | D68: 4 | E68: 0 | F68: 3 | H68: 0 | I68: Nepal
A69: NPL | B69: Behavioural support: telephone | C69: 3 | D69: 3 | E69: 0 | F69: 2 | H69: 0 | I69: Nepal
A70: NPL | B70: Text messaging | C70: 4 | D70: 4 | E70: 0 | F70: 0 | H70: 5 | I70: Nepal
A71: NPL | B71: Printed materials | C71: 5 | D71: 2 | E71: 0 | F71: 0.2 | H71: 5 | I71: Nepal
A72: NPL | B72: Single form NRT | C72: 6 | D72: 6 | E72: 0.6 | F72: 0 | H72: 150 | I72: Nepal
A73: NPL | B73: Bupropion | C73: 7 | D73: 7 | E73: 1 | F73: 0 | H73: 100 | I73: Nepal
A74: NPL | B74: Nortriptyline | C74: 8 | D74: 10 | E74: 2 | F74: 0 | H74: 20 | I74: Nepal
A75: NPL | B75: Varenicline | C75: 9 | D75: 15 | E75: 1 | F75: 0 | H75: 300 | I75: Nepal
A76: NPL | B76: Cytisine | C76: 10 | D76: 6 | E76: 0.6 | F76: 0 | H76: 20 | I76: Nepal
A77: NPL | B77: In person support+ single NRT | C77: 11 | D77: 10 | E77: 0.6 | F77: 4 | H77: 150 | I77: Nepal
A78: NPL | B78: Dual NRT | C78: 12 | D78: 11 | E78: 0.6 | F78: 0 | H78: 300 | I78: Nepal
A79: NPL | B79: In person support+ dual NRT | C79: 13 | D79: 21 | E79: 0.6 | F79: 4 | H79: 300 | I79: Nepal
A80: RUS | B80: Brief advice | C80: 1 | D80: 2 | E80: 0.6 | F80: 0 | H80: 0 | I80: Russian Federation
A81: RUS | B81: Behavioural support: in person | C81: 2 | D81: 4 | E81: 0 | F81: 3 | H81: 0 | I81: Russian Federation
A82: RUS | B82: Behavioural support: telephone | C82: 3 | D82: 3 | E82: 0 | F82: 2 | H82: 0 | I82: Russian Federation
A83: RUS | B83: Text messaging | C83: 4 | D83: 4 | E83: 0 | F83: 0 | H83: 10 | I83: Russian Federation
A84: RUS | B84: Printed materials | C84: 5 | D84: 2 | E84: 0 | F84: 0.2 | H84: 10 | I84: Russian Federation
A85: RUS | B85: Single form NRT | C85: 6 | D85: 6 | E85: 0.6 | F85: 0 | H85: 150 | I85: Russian Federation
A86: RUS | B86: Bupropion | C86: 7 | D86: 7 | E86: 1 | F86: 0 | H86: 100 | I86: Russian Federation
A87: RUS | B87: Nortriptyline | C87: 8 | D87: 10 | E87: 2 | F87: 0 | H87: 20 | I87: Russian Federation
A88: RUS | B88: Varenicline | C88: 9 | D88: 15 | E88: 1 | F88: 0 | H88: 300 | I88: Russian Federation
A89: RUS | B89: Cytisine | C89: 10 | D89: 6 | E89: 0.6 | F89: 0 | H89: 20 | I89: Russian Federation
A90: RUS | B90: In person support+ single NRT | C90: 11 | D90: 10 | E90: 0.6 | F90: 4 | H90: 150 | I90: Russian Federation
A91: RUS | B91: Dual NRT | C91: 12 | D91: 11 | E91: 0.6 | F91: 0 | H91: 300 | I91: Russian Federation
A92: RUS | B92: In person support+ dual NRT | C92: 13 | D92: 21 | E92: 0.6 | F92: 4 | H92: 300 | I92: Russian Federation
A93: ZAF | B93: Brief advice | C93: 1 | D93: 2 | E93: 0.6 | F93: 0 | H93: 0 | I93: South Africa
A94: ZAF | B94: Behavioural support: in person | C94: 2 | D94: 4 | E94: 0 | F94: 3 | H94: 0 | I94: South Africa
A95: ZAF | B95: Behavioural support: telephone | C95: 3 | D95: 3 | E95: 0 | F95: 2 | H95: 0 | I95: South Africa
A96: ZAF | B96: Text messaging | C96: 4 | D96: 4 | E96: 0 | F96: 0 | H96: 10 | I96: South Africa
A97: ZAF | B97: Printed materials | C97: 5 | D97: 2 | E97: 0 | F97: 0.2 | H97: 10 | I97: South Africa
A98: ZAF | B98: Single form NRT | C98: 6 | D98: 6 | E98: 0.6 | F98: 0 | H98: 150 | I98: South Africa
A99: ZAF | B99: Bupropion | C99: 7 | D99: 7 | E99: 1 | F99: 0 | H99: 100 | I99: South Africa
A100: ZAF | B100: Nortriptyline | C100: 8 | D100: 10 | E100: 2 | F100: 0 | H100: 20 | I100: South Africa
A101: ZAF | B101: Varenicline | C101: 9 | D101: 15 | E101: 1 | F101: 0 | H101: 300 | I101: South Africa
A102: ZAF | B102: Cytisine | C102: 10 | D102: 6 | E102: 0.6 | F102: 0 | H102: 20 | I102: South Africa
A103: ZAF | B103: In person support+ single NRT | C103: 11 | D103: 10 | E103: 0.6 | F103: 4 | H103: 150 | I103: South Africa
A104: ZAF | B104: Dual NRT | C104: 12 | D104: 11 | E104: 0.6 | F104: 0 | H104: 300 | I104: South Africa
A105: ZAF | B105: In person support+ dual NRT | C105: 13 | D105: 21 | E105: 0.6 | F105: 4 | H105: 300 | I105: South Africa
A106: GBR | B106: Brief advice | C106: 1 | D106: 2 | E106: 0.6 | F106: 0 | H106: 0 | I106: United Kingdom
A107: GBR | B107: Behavioural support: in person | C107: 2 | D107: 4 | E107: 0 | F107: 3 | H107: 0 | I107: United Kingdom
A108: GBR | B108: Behavioural support: telephone | C108: 3 | D108: 3 | E108: 0 | F108: 2 | H108: 0 | I108: United Kingdom
A109: GBR | B109: Text messaging | C109: 4 | D109: 4 | E109: 0 | F109: 0 | H109: 10 | I109: United Kingdom
A110: GBR | B110: Printed materials | C110: 5 | D110: 2 | E110: 0 | F110: 0.2 | H110: 10 | I110: United Kingdom
A111: GBR | B111: Single form NRT | C111: 6 | D111: 6 | E111: 0.6 | F111: 0 | H111: 150 | I111: United Kingdom
A112: GBR | B112: Bupropion | C112: 7 | D112: 7 | E112: 1 | F112: 0 | H112: 100 | I112: United Kingdom
A113: GBR | B113: Nortriptyline | C113: 8 | D113: 10 | E113: 2 | F113: 0 | H113: 20 | I113: United Kingdom
A114: GBR | B114: Varenicline | C114: 9 | D114: 15 | E114: 1 | F114: 0 | H114: 300 | I114: United Kingdom
A115: GBR | B115: Cytisine | C115: 10 | D115: 6 | E115: 0.6 | F115: 0 | H115: 20 | I115: United Kingdom
A116: GBR | B116: In person support+ single NRT | C116: 11 | D116: 10 | E116: 0.6 | F116: 4 | H116: 150 | I116: United Kingdom
A117: GBR | B117: Dual NRT | C117: 12 | D117: 11 | E117: 0.6 | F117: 0 | H117: 300 | I117: United Kingdom
A118: GBR | B118: In person support+ dual NRT | C118: 13 | D118: 21 | E118: 0.6 | F118: 4 | H118: 300 | I118: United Kingdom
A119: URY | B119: Brief advice | C119: 1 | D119: 2 | E119: 0.6 | F119: 0 | H119: 0 | I119: Uruguay
A120: URY | B120: Behavioural support: in person | C120: 2 | D120: 4 | E120: 0 | F120: 3 | H120: 0 | I120: Uruguay
A121: URY | B121: Behavioural support: telephone | C121: 3 | D121: 3 | E121: 0 | F121: 2 | H121: 0 | I121: Uruguay
A122: URY | B122: Text messaging | C122: 4 | D122: 4 | E122: 0 | F122: 0 | H122: 10 | I122: Uruguay
A123: URY | B123: Printed materials | C123: 5 | D123: 2 | E123: 0 | F123: 0.2 | H123: 10 | I123: Uruguay
A124: URY | B124: Single form NRT | C124: 6 | D124: 6 | E124: 0.6 | F124: 0 | H124: 150 | I124: Uruguay
A125: URY | B125: Bupropion | C125: 7 | D125: 7 | E125: 1 | F125: 0 | H125: 100 | I125: Uruguay
A126: URY | B126: Nortriptyline | C126: 8 | D126: 10 | E126: 2 | F126: 0 | H126: 20 | I126: Uruguay
A127: URY | B127: Varenicline | C127: 9 | D127: 15 | E127: 1 | F127: 0 | H127: 300 | I127: Uruguay
A128: URY | B128: Cytisine | C128: 10 | D128: 6 | E128: 0.6 | F128: 0 | H128: 20 | I128: Uruguay
A129: URY | B129: In person support+ single NRT | C129: 11 | D129: 10 | E129: 0.6 | F129: 4 | H129: 150 | I129: Uruguay
A130: URY | B130: Dual NRT | C130: 12 | D130: 11 | E130: 0.6 | F130: 0 | H130: 300 | I130: Uruguay
A131: URY | B131: In person support+ dual NRT | C131: 13 | D131: 21 | E131: 0.6 | F131: 4 | H131: 300 | I131: Uruguay
A132: CUSTOM | B132: Brief advice | C132: 1 | D132: 2 | E132: 0.6 | F132: 0 | G132: 0 | H132: 0 | I132: Custom
A133: CUSTOM | B133: Behavioural support: in person | C133: 2 | D133: 4 | E133: 0 | F133: 3 | G133: 0 | H133: 0 | I133: Custom
A134: CUSTOM | B134: Behavioural support: telephone | C134: 3 | D134: 3 | E134: 0 | F134: 2 | G134: 0 | H134: 0 | I134: Custom
A135: CUSTOM | B135: Text messaging | C135: 4 | D135: 4 | E135: 0 | F135: 0 | G135: 0 | H135: 10 | I135: Custom
A136: CUSTOM | B136: Printed materials | C136: 5 | D136: 2 | E136: 0 | F136: 0.2 | G136: 0 | H136: 10 | I136: Custom
A137: CUSTOM | B137: Single form NRT | C137: 6 | D137: 6 | E137: 0.6 | F137: 0 | G137: 0 | H137: 150 | I137: Custom
A138: CUSTOM | B138: Bupropion | C138: 7 | D138: 7 | E138: 1 | F138: 0 | G138: 0 | H138: 100 | I138: Custom
A139: CUSTOM | B139: Nortriptyline | C139: 8 | D139: 10 | E139: 2 | F139: 0 | G139: 0 | H139: 20 | I139: Custom
A140: CUSTOM | B140: Varenicline | C140: 9 | D140: 15 | E140: 1 | F140: 0 | G140: 0 | H140: 300 | I140: Custom
A141: CUSTOM | B141: Cytisine | C141: 10 | D141: 6 | E141: 0.6 | F141: 0 | G141: 0 | H141: 20 | I141: Custom
A142: CUSTOM | B142: In person support+ single NRT | C142: 11 | D142: 10 | E142: 0.6 | F142: 4 | G142: 0 | H142: 150 | I142: Custom
A143: CUSTOM | B143: Dual NRT | C143: 12 | D143: 11 | E143: 0.6 | F143: 0 | G143: 0 | H143: 300 | I143: Custom
A144: CUSTOM | B144: In person support+ dual NRT | C144: 13 | D144: 21 | E144: 0.6 | F144: 4 | G144: 0 | H144: 300 | I144: Custom
A145: CSTM1 | B145: Brief advice | C145: 1 | D145: 2 | E145: 0.6 | F145: 0 | G145: 0 | H145: 0 | I145: Bolivia
A146: CSTM1 | B146: Behavioural support: in person | C146: 2 | D146: 4 | E146: 0 | F146: 3 | G146: 0 | H146: 0 | I146: Bolivia
A147: CSTM1 | B147: Behavioural support: telephone | C147: 3 | D147: 3 | E147: 0 | F147: 2 | G147: 0 | H147: 0 | I147: Bolivia
A148: CSTM1 | B148: Text messaging | C148: 4 | D148: 4 | E148: 0 | F148: 0 | G148: 0 | H148: 10 | I148: Bolivia
A149: CSTM1 | B149: Printed materials | C149: 5 | D149: 2 | E149: 0 | F149: 0.2 | G149: 0 | H149: 10 | I149: Bolivia
A150: CSTM1 | B150: Single form NRT | C150: 6 | D150: 6 | E150: 0.6 | F150: 0 | G150: 0 | H150: 150 | I150: Bolivia
A151: CSTM1 | B151: Bupropion | C151: 7 | D151: 7 | E151: 1 | F151: 0 | G151: 0 | H151: 100 | I151: Bolivia
A152: CSTM1 | B152: Nortriptyline | C152: 8 | D152: 10 | E152: 2 | F152: 0 | G152: 0 | H152: 20 | I152: Bolivia
A153: CSTM1 | B153: Varenicline | C153: 9 | D153: 15 | E153: 1 | F153: 0 | G153: 0 | H153: 300 | I153: Bolivia
A154: CSTM1 | B154: Cytisine | C154: 10 | D154: 6 | E154: 0.6 | F154: 0 | G154: 0 | H154: 20 | I154: Bolivia
A155: CSTM1 | B155: In person support+ single NRT | C155: 11 | D155: 10 | E155: 0.6 | F155: 4 | G155: 0 | H155: 150 | I155: Bolivia
A156: CSTM1 | B156: Dual NRT | C156: 12 | D156: 11 | E156: 0.6 | F156: 0 | G156: 0 | H156: 300 | I156: Bolivia
A157: CSTM1 | B157: In person support+ dual NRT | C157: 13 | D157: 21 | E157: 0.6 | F157: 4 | G157: 0 | H157: 300 | I157: Bolivia

Sheet Country Coding
A1: Country Code | B1: Country Name | C1: WHO Region Code | D1: WHO Region Name | E1: WHO Subregion | F1: Income Level | G1: CURRENCY | H1: SYMBOL | I1: Currency Name
A2: AFG | B2: Afghanistan | C2: EMR | D2: Eastern Mediterranean | E2: EMRO D | F2: Low | G2: AFN | H2: AFN | I2: Afghanis | J2: Eastern Med (D)
A3: ALB | B3: Albania | C3: EUR | D3: European | E3: EURO B | F3: Upper middle | G3: ALL | H3: Lek | I3: Albanian Leks | J3: European (B)
A4: DZA | B4: Algeria | C4: AFR | D4: African | E4: AFRO D | F4: Upper middle | J4: African (D)
A5: ASM | B5: American Samoa | C5: RESIDUAL | D5: Residual | E5: RESIDUAL | F5: Upper middle
A6: AND | B6: Andorra | C6: EUR | D6: European | E6: EURO A | F6: High | J6: European (A)
A7: AGO | B7: Angola | C7: AFR | D7: African | E7: AFRO D | F7: Upper middle | J7: African (D)
A8: ATG | B8: Antigua & Barbuda | C8: AMR | D8: Americas | E8: AMRO B | F8: High | J8: Americas (B)
A9: ARG | B9: Argentina | C9: AMR | D9: Americas | E9: AMRO B | F9: Upper middle | G9: ARS | H9: $ | I9: Argentinian Pesos | J9: Americas (B)
A10: ARM | B10: Armenia | C10: EUR | D10: European | E10: EURO B | F10: Lower middle | J10: European (B)
A11: ABW | B11: Aruba | C11: RESIDUAL | D11: Residual | E11: RESIDUAL | F11: High
A12: AUS | B12: Australia | C12: WPR | D12: Western Pacific | E12: WPRO A | F12: High | G12: AUD | H12: $ | I12: Australian Dollars | J12: W. Pacific (A)
A13: AUT | B13: Austria | C13: EUR | D13: European | E13: EURO A | F13: High | G13: EUR | H13: € | I13: Euros | J13: European (A)
A14: AZE | B14: Azerbaijan | C14: EUR | D14: European | E14: EURO B | F14: Upper middle | G14: AZN | H14: AZN | I14: Azerbaijani New Manats | J14: European (B)
A15: BHS | B15: Bahamas | C15: AMR | D15: Americas | E15: AMRO B | F15: High | G15: BSD | H15: $ | I15: Bahamas Dollars | J15: Americas (B)
A16: BHR | B16: Bahrain | C16: EMR | D16: Eastern Mediterranean | E16: EMRO B | F16: High | J16: Eastern Med (B)
A17: BGD | B17: Bangladesh | C17: SEAR | D17: South-East Asia | E17: SEARO D | F17: Low | J17: SE Asia (D)
A18: BRB | B18: Barbados | C18: AMR | D18: Americas | E18: AMRO B | F18: High | G18: BBD | H18: $ | I18: Barbados Dollars | J18: Americas (B)
A19: BLR | B19: Belarus | C19: EUR | D19: European | E19: EURO C | F19: Upper middle | G19: BYR | H19: p. | I19: Belarus Rubles | J19: European (C)
A20: BEL | B20: Belgium | C20: EUR | D20: European | E20: EURO A | F20: High | G20: EUR | H20: € | I20: Euros | J20: European (A)
A21: BLZ | B21: Belize | C21: AMR | D21: Americas | E21: AMRO B | F21: Upper middle | G21: BZD | H21: BZ$ | I21: Belize Dollars | J21: Americas (B)
A22: BEN | B22: Benin | C22: AFR | D22: African | E22: AFRO D | F22: Low | J22: African (D)
A23: BMU | B23: Bermuda | C23: RESIDUAL | D23: Residual | E23: RESIDUAL | F23: High
A24: BTN | B24: Bhutan | C24: SEAR | D24: South-East Asia | E24: SEARO D | F24: Lower middle | J24: SE Asia (D)
A25: BOL | B25: Bolivia | C25: AMR | D25: Americas | E25: AMRO D | F25: Lower middle | G25: BOB | H25: $b | I25: Bolivian Bolivianos | J25: Americas (D)
A26: BIH | B26: Bosnia & Herzegovina | C26: EUR | D26: European | E26: EURO B | F26: Upper middle | G26: BAM | H26: KM | I26: Convertible Markas | J26: European (B)
A27: BWA | B27: Botswana | C27: AFR | D27: African | E27: AFRO E | F27: Upper middle | G27: BWP | H27: P | I27: Botswanan Pulas | J27: African (E)
A28: BRA | B28: Brazil | C28: AMR | D28: Americas | E28: AMRO B | F28: Upper middle | G28: BRL | H28: R$ | I28: Brazillian Reals | J28: Americas (B)
A29: BRN | B29: Brunei Darussalam | C29: WPR | D29: Western Pacific | E29: WPRO A | F29: High | G29: BND | H29: $ | I29: Darussalam Dollars | J29: W. Pacific (A)
A30: BGR | B30: Bulgaria | C30: EUR | D30: European | E30: EURO B | F30: Upper middle | G30: BGN | H30: BGN | I30: Bulgaria Levs | J30: European (B)
A31: BFA | B31: Burkina Faso | C31: AFR | D31: African | E31: AFRO D | F31: Low | J31: African (D)
A32: BDI | B32: Burundi | C32: AFR | D32: African | E32: AFRO E | F32: Low | J32: African (E)
A33: KHM | B33: Cambodia | C33: WPR | D33: Western Pacific | E33: WPRO B | F33: Low | G33: KHR | H33: KHR | I33: Cambodian Riels | J33: W. Pacific (B)
A34: CMR | B34: Cameroon | C34: AFR | D34: African | E34: AFRO D | F34: Lower middle | J34: African (D)
A35: CAN | B35: Canada | C35: AMR | D35: Americas | E35: AMRO A | F35: High | G35: CAD | H35: $ | I35: Canadian Dollars | J35: Americas (A)
A36: CPV | B36: Cape Verde | C36: AFR | D36: African | E36: AFRO D | F36: Lower middle | J36: African (D)
A37: CYM | B37: Cayman Islands | C37: RESIDUAL | D37: Residual | E37: RESIDUAL | F37: High
A38: CAF | B38: Central African Republic | C38: AFR | D38: African | E38: AFRO E | F38: Low | J38: African (E)
A39: TCD | B39: Chad | C39: AFR | D39: African | E39: AFRO D | F39: Low | J39: African (D)
A40: CHI | B40: Channel Islands | C40: RESIDUAL | D40: Residual | E40: RESIDUAL | F40: High
A41: CHL | B41: Chile | C41: AMR | D41: Americas | E41: AMRO B | F41: High | G41: CLP | H41: $ | I41: Chilean Pesos | J41: Americas (B)
A42: CHN | B42: China | C42: WPR | D42: Western Pacific | E42: WPRO B | F42: Upper middle | G42: CNY | H42: ¥ | I42: Chinese Yuan | J42: W. Pacific (B)
A43: COL | B43: Colombia | C43: AMR | D43: Americas | E43: AMRO B | F43: Upper middle | G43: COP | H43: $ | I43: Colombian Pesos | J43: Americas (B)
A44: COM | B44: Comoros | C44: AFR | D44: African | E44: AFRO D | F44: Low | J44: African (D)
A45: COG | B45: Congo | C45: AFR | D45: African | E45: AFRO E | F45: Lower middle | J45: African (E)
A46: CRI | B46: Costa Rica | C46: AMR | D46: Americas | E46: AMRO B | F46: Upper middle | G46: CRC | H46: ¢ | I46: Costa Rican Colons | J46: Americas (B)
A47: CIV | B47: Côte d'Ivoire | C47: AFR | D47: African | E47: AFRO E | F47: Lower middle | J47: African (E)
A48: HRV | B48: Croatia | C48: EUR | D48: European | E48: EURO A | F48: High | G48: HRK | H48: kn | I48: Croatian Kunas | J48: European (A)
A49: CUB | B49: Cuba | C49: AMR | D49: Americas | E49: AMRO A | F49: Upper middle | J49: Americas (A)
A50: CUW | B50: Curacao | C50: AMR | D50: Americas | E50: AMRO B | F50: High | J50: Americas (B)
A51: CYP | B51: Cyprus | C51: EUR | D51: European | E51: EURO A | F51: High | G51: EUR | H51: € | I51: Euros | J51: European (A)
A52: CZE | B52: Czech Republic | C52: EUR | D52: European | E52: EURO A | F52: High | G52: CZK | H52: Kc | I52: Czech Korunas | J52: European (A)
A53: PRK | B53: Democratic People's Republic of Korea | C53: SEAR | D53: South-East Asia | E53: SEARO D | F53: Low | J53: SE Asia (D)
A54: COD | B54: Democratic Republic of the Congo | C54: AFR | D54: African | E54: AFRO E | F54: Low | J54: African (E)
A55: DNK | B55: Denmark | C55: EUR | D55: European | E55: EURO A | F55: High | G55: DKK | H55: kr | I55: Danish Krones | J55: European (A)
A56: DJI | B56: Djibouti | C56: EMR | D56: Eastern Mediterranean | E56: EMRO D | F56: Lower middle | J56: Eastern Med (D)
A57: DMA | B57: Dominica | C57: AMR | D57: Americas | E57: AMRO B | F57: Upper middle | J57: Americas (B)
A58: DOM | B58: Dominican Republic | C58: AMR | D58: Americas | E58: AMRO B | F58: Upper middle | G58: DOP | H58: RD$ | I58: Dominican Pesos | J58: Americas (B)
A59: ECU | B59: Ecuador | C59: AMR | D59: Americas | E59: AMRO D | F59: Upper middle | J59: Americas (D)
A60: EGY | B60: Egypt | C60: EMR | D60: Eastern Mediterranean | E60: EMRO D | F60: Lower middle | G60: EGP | H60: £ | I60: Egyptian Pounds | J60: Eastern Med (D)
A61: SLV | B61: El Salvador | C61: AMR | D61: Americas | E61: AMRO B | F61: Lower middle | G61: SVC | H61: $ | I61: El Salvadorian Colons | J61: Americas (B)
A62: GNQ | B62: Equatorial Guinea | C62: AFR | D62: African | E62: AFRO D | F62: High | J62: African (D)
A63: ERI | B63: Eritrea | C63: AFR | D63: African | E63: AFRO E | F63: Low | J63: African (E)
A64: EST | B64: Estonia | C64: EUR | D64: European | E64: EURO C | F64: High | G64: EUR | H64: € | I64: Euros | J64: European (C)
A65: ETH | B65: Ethiopia | C65: AFR | D65: African | E65: AFRO E | F65: Low | J65: African (E)
A66: FRO | B66: Faeroe Islands | C66: RESIDUAL | D66: Residual | E66: RESIDUAL | F66: High
A67: FJI | B67: Fiji | C67: WPR | D67: Western Pacific | E67: WPRO B | F67: Upper middle | G67: FJD | H67: $ | I67: Fijian Dollars | J67: W. Pacific (B)
A68: FIN | B68: Finland | C68: EUR | D68: European | E68: EURO A | F68: High | G68: EUR | H68: € | I68: Euros | J68: European (A)
A69: FRA | B69: France | C69: EUR | D69: European | E69: EURO A | F69: High | G69: EUR | H69: € | I69: Euros | J69: European (A)
A70: PYF | B70: French Polynesia | C70: RESIDUAL | D70: Residual | E70: RESIDUAL | F70: High
A71: GAB | B71: Gabon | C71: AFR | D71: African | E71: AFRO D | F71: Upper middle | J71: African (D)
A72: GMB | B72: Gambia | C72: AFR | D72: African | E72: AFRO D | F72: Low | J72: African (D)
A73: GEO | B73: Georgia | C73: EUR | D73: European | E73: EURO B | F73: Lower middle | J73: European (B)
A74: DEU | B74: Germany | C74: EUR | D74: European | E74: EURO A | F74: High | G74: EUR | H74: € | I74: Euros | J74: European (A)
A75: GHA | B75: Ghana | C75: AFR | D75: African | E75: AFRO D | F75: Lower middle | G75: GHC | H75: ¢ | I75: Ghanan Cedis | J75: African (D)
A76: GRC | B76: Greece | C76: EUR | D76: European | E76: EURO A | F76: High | G76: EUR | H76: € | I76: Euros | J76: European (A)
A77: GRL | B77: Greenland | C77: RESIDUAL | D77: Residual | E77: RESIDUAL | F77: High
A78: GRD | B78: Grenada | C78: AMR | D78: Americas | E78: AMRO B | F78: Upper middle | J78: Americas (B)
A79: GUM | B79: Guam | C79: RESIDUAL | D79: Residual | E79: RESIDUAL | F79: High
A80: GTM | B80: Guatemala | C80: AMR | D80: Americas | E80: AMRO D | F80: Lower middle | G80: GTQ | H80: Q | I80: Guatemalan Quetzals | J80: Americas (D)
A81: GIN | B81: Guinea | C81: AFR | D81: African | E81: AFRO D | F81: Low | J81: African (D)
A82: GNB | B82: Guinea-Bissau | C82: AFR | D82: African | E82: AFRO D | F82: Low | J82: African (D)
A83: GUY | B83: Guyana | C83: AMR | D83: Americas | E83: AMRO B | F83: Lower middle | G83: GYD | H83: $ | I83: Guyanan Dollars | J83: Americas (B)
A84: HTI | B84: Haiti | C84: AMR | D84: Americas | E84: AMRO D | F84: Low | J84: Americas (D)
A85: HND | B85: Honduras | C85: AMR | D85: Americas | E85: AMRO B | F85: Lower middle | G85: HNL | H85: L | I85: Honduran Lempiras | J85: Americas (B)
A86: HKG | B86: Hong Kong | C86: WPR | D86: Western Pacific | E86: WPRO B | F86: High | G86: HKD | H86: $ | I86: HK Dollars | J86: W. Pacific (B)
A87: HUN | B87: Hungary | C87: EUR | D87: European | E87: EURO C | F87: Upper middle | G87: HUF | H87: Ft | I87: Hungarian Forints | J87: European (C)
A88: ISL | B88: Iceland | C88: EUR | D88: European | E88: EURO A | F88: High | G88: ISK | H88: kr | I88: Icelandic Kronas | J88: European (A)
A89: IND | B89: India | C89: SEAR | D89: South-East Asia | E89: SEARO D | F89: Lower middle | G89: INR | H89: ₹ | I89: Indian Rupees | J89: SE Asia (D)
A90: IDN | B90: Indonesia | C90: SEAR | D90: South-East Asia | E90: SEARO B | F90: Lower middle | G90: IDR | H90: Rp | I90: Indonesian Rupiahs | J90: SE Asia (B)
A91: IRN | B91: Iran (Islamic Republic of) | C91: EMR | D91: Eastern Mediterranean | E91: EMRO B | F91: Upper middle | G91: IRR | H91: IRR | I91: Iranian Rials | J91: Eastern Med (B)
A92: IRQ | B92: Iraq | C92: EMR | D92: Eastern Mediterranean | E92: EMRO D | F92: Upper middle | J92: Eastern Med (D)
A93: IRL | B93: Ireland | C93: EUR | D93: European | E93: EURO A | F93: High | G93: EUR | H93: € | I93: Euros | J93: European (A)
A94: IMN | B94: Isle of Man | C94: RESIDUAL | D94: Residual | E94: RESIDUAL | F94: Upper middle
A95: ISR | B95: Israel | C95: EUR | D95: European | E95: EURO A | F95: High | G95: ILS | H95: ILS | I95: Israeli Shekels | J95: European (A)
A96: ITA | B96: Italy | C96: EUR | D96: European | E96: EURO A | F96: High | G96: EUR | H96: € | I96: Euros | J96: European (A)
A97: JAM | B97: Jamaica | C97: AMR | D97: Americas | E97: AMRO B | F97: Upper middle | G97: JMD | H97: J$ | I97: Jamaican Dollars | J97: Americas (B)
A98: JPN | B98: Japan | C98: WPR | D98: Western Pacific | E98: WPRO A | F98: High | G98: JPY | H98: ¥ | I98: Japanese Yens | J98: W. Pacific (A)
A99: JOR | B99: Jordan | C99: EMR | D99: Eastern Mediterranean | E99: EMRO B | F99: Upper middle | J99: Eastern Med (B)
A100: KAZ | B100: Kazakhstan | C100: EUR | D100: European | E100: EURO C | F100: Upper middle | G100: KZT | H100: KZT | I100: Kazakh Tenges | J100: European (C)
A101: KEN | B101: Kenya | C101: AFR | D101: African | E101: AFRO E | F101: Low | J101: African (E)
A102: KIR | B102: Kiribati | C102: WPR | D102: Western Pacific | E102: WPRO B | F102: Lower middle | J102: W. Pacific (B)
A103: KSV | B103: Kosovo | C103: EUR | D103: European | E103: EURO B | F103: Lower middle | J103: European (B)
A104: KWT | B104: Kuwait | C104: EMR | D104: Eastern Mediterranean | E104: EMRO B | F104: High | J104: Eastern Med (B)
A105: KGZ | B105: Kyrgyzstan | C105: EUR | D105: European | E105: EURO B | F105: Lower middle | G105: KGS | H105: KGS | I105: Kyrgyz Soms | J105: European (B)
A106: LAO | B106: Lao People's Democratic Republic | C106: WPR | D106: Western Pacific | E106: WPRO B | F106: Lower middle | G106: LAK | H106: LAK | I106: Laos Kips | J106: W. Pacific (B)
A107: LVA | B107: Latvia | C107: EUR | D107: European | E107: EURO C | F107: High | G107: EUR | H107: € | I107: Euros | J107: European (C)
A108: LBN | B108: Lebanon | C108: EMR | D108: Eastern Mediterranean | E108: EMRO B | F108: Upper middle | G108: LBP | H108: £ | I108: Lebanese Pounds | J108: Eastern Med (B)
A109: LSO | B109: Lesotho | C109: AFR | D109: African | E109: AFRO E | F109: Lower middle | J109: African (E)
A110: LBR | B110: Liberia | C110: AFR | D110: African | E110: AFRO D | F110: Low | G110: LRD | H110: $ | I110: Liberian Dollars | J110: African (D)
A111: LBY | B111: Libyan Arab Jamahiriya | C111: EMR | D111: Eastern Mediterranean | E111: EMRO B | F111: Upper middle | J111: Eastern Med (B)
A112: LIE | B112: Liechtenstein | C112: RESIDUAL | D112: Residual | E112: RESIDUAL | F112: High
A113: LTU | B113: Lithuania | C113: EUR | D113: European | E113: EURO C | F113: High | G113: LTL | H113: Lt | I113: Lithuanian Litass | J113: European (C)
A114: LUX | B114: Luxembourg | C114: EUR | D114: European | E114: EURO A | F114: High | G114: EUR | H114: € | I114: Euros | J114: European (A)
A115: MAC | B115: Macao | C115: WPR | D115: Western Pacific | E115: WPRO B | F115: High | J115: W. Pacific (B)
A116: MDG | B116: Madagascar | C116: AFR | D116: African | E116: AFRO D | F116: Low | J116: African (D)
A117: MWI | B117: Malawi | C117: AFR | D117: African | E117: AFRO E | F117: Low | J117: African (E)
A118: MYS | B118: Malaysia | C118: WPR | D118: Western Pacific | E118: WPRO B | F118: Upper middle | G118: MYR | H118: RM | I118: Malaysian Ringgits | J118: W. Pacific (B)
A119: MDV | B119: Maldives | C119: SEAR | D119: South-East Asia | E119: SEARO D | F119: Upper middle | J119: SE Asia (D)
A120: MLI | B120: Mali | C120: AFR | D120: African | E120: AFRO D | F120: Low | J120: African (D)
A121: MLT | B121: Malta | C121: EUR | D121: European | E121: EURO A | F121: High | G121: EUR | H121: € | I121: Euros | J121: European (A)
A122: MHL | B122: Marshall Islands | C122: WPR | D122: Western Pacific | E122: WPRO B | F122: Upper middle | J122: W. Pacific (B)
A123: MRT | B123: Mauritania | C123: AFR | D123: African | E123: AFRO D | F123: Lower middle | J123: African (D)
A124: MUS | B124: Mauritius | C124: AFR | D124: African | E124: AFRO D | F124: Upper middle | G124: MUR | H124: MUR | I124: Mauritius Rupees | J124: African (D)
A125: MEX | B125: Mexico | C125: AMR | D125: Americas | E125: AMRO B | F125: Upper middle | G125: MXN | H125: $ | I125: Mexican Pesos | J125: Americas (B)
A126: FSM | B126: Micronesia (Federated States of) | C126: WPR | D126: Western Pacific | E126: WPRO B | F126: Lower middle | J126: W. Pacific (B)
A127: MCO | B127: Monaco | C127: EUR | D127: European | E127: EURO A | F127: High | J127: European (A)
A128: MNG | B128: Mongolia | C128: WPR | D128: Western Pacific | E128: WPRO B | F128: Lower middle | G128: MNT | H128: MNT | I128: Mongolian Tughriks | J128: W. Pacific (B)
A129: MNE | B129: Montenegro | C129: EUR | D129: European | E129: EURO B | F129: Upper middle | J129: European (B)
A130: MAR | B130: Morocco | C130: EMR | D130: Eastern Mediterranean | E130: EMRO D | F130: Lower middle | J130: Eastern Med (D)
A131: MOZ | B131: Mozambique | C131: AFR | D131: African | E131: AFRO E | F131: Low | G131: MZN | H131: MT | I131: Mozambique Meticals | J131: African (E)
A132: MMR | B132: Myanmar | C132: SEAR | D132: South-East Asia | E132: SEARO D | F132: Low | J132: SE Asia (D)
A133: NAM | B133: Namibia | C133: AFR | D133: African | E133: AFRO E | F133: Upper middle | G133: NAD | H133: $ | I133: Namibian Dollars | J133: African (E)
A134: NPL | B134: Nepal | C134: SEAR | D134: South-East Asia | E134: SEARO D | F134: Low | G134: NPR | H134: Rs | I134: Nepalese Rupees | J134: SE Asia (D)
A135: NLD | B135: Netherlands | C135: EUR | D135: European | E135: EURO A | F135: High | G135: EUR | H135: € | I135: Euros | J135: European (A)
A136: NCL | B136: New Caledonia | C136: RESIDUAL | D136: Residual | E136: RESIDUAL | F136: High
A137: NZL | B137: New Zealand | C137: WPR | D137: Western Pacific | E137: WPRO A | F137: High | G137: NZD | H137: $ | I137: NZ Dollars | J137: W. Pacific (A)
A138: NIC | B138: Nicaragua | C138: AMR | D138: Americas | E138: AMRO D | F138: Lower middle | G138: NIO | H138: C$ | I138: Nicaraguan Cordobas | J138: Americas (D)
A139: NER | B139: Niger | C139: AFR | D139: African | E139: AFRO D | F139: Low | J139: African (D)
A140: NGA | B140: Nigeria | C140: AFR | D140: African | E140: AFRO D | F140: Lower middle | G140: NGN | H140: NGN | I140: Nigerian Nairas | J140: African (D)
A141: MNP | B141: Northern Mariana Islands | C141: RESIDUAL | D141: Residual | E141: RESIDUAL | F141: High
A142: NOR | B142: Norway | C142: EUR | D142: European | E142: EURO A | F142: High | G142: NOK | H142: kr | I142: Norwegian Krones | J142: European (A)
A143: OMN | B143: Oman | C143: EMR | D143: Eastern Mediterranean | E143: EMRO B | F143: High | G143: OMR | H143: OMR | I143: Omani Rials | J143: Eastern Med (B)
A144: PAK | B144: Pakistan | C144: EMR | D144: Eastern Mediterranean | E144: EMRO D | F144: Lower middle | G144: PKR | H144: PKR | I144: Pakistani Rupees | J144: Eastern Med (D)
A145: PLW | B145: Palau | C145: WPR | D145: Western Pacific | E145: WPRO B | F145: Upper middle | J145: W. Pacific (B)
A146: PAN | B146: Panama | C146: AMR | D146: Americas | E146: AMRO B | F146: Upper middle | G146: PAB | H146: B/. | I146: Panaman Balboas | J146: Americas (B)
A147: PNG | B147: Papua New Guinea | C147: WPR | D147: Western Pacific | E147: WPRO B | F147: Lower middle | J147: W. Pacific (B)
A148: PRY | B148: Paraguay | C148: AMR | D148: Americas | E148: AMRO B | F148: Lower middle | G148: PYG | H148: Gs | I148: Paraguayan Guaranis | J148: Americas (B)
A149: PER | B149: Peru | C149: AMR | D149: Americas | E149: AMRO D | F149: Upper middle | G149: PEN | H149: S/. | I149: Peru Nuevan Sols | J149: Americas (D)
A150: PHL | B150: Philippines | C150: WPR | D150: Western Pacific | E150: WPRO B | F150: Lower middle | G150: PHP | H150: PHP | I150: Philippino Pesos | J150: W. Pacific (B)
A151: POL | B151: Poland | C151: EUR | D151: European | E151: EURO B | F151: High | G151: PLN | H151: zl | I151: Polish Zlotys | J151: European (B)
A152: PRT | B152: Portugal | C152: EUR | D152: European | E152: EURO A | F152: High | G152: EUR | H152: € | I152: Euros | J152: European (A)
A153: PRI | B153: Puerto Rico | C153: RESIDUAL | D153: Residual | E153: RESIDUAL | F153: High
A154: QAT | B154: Qatar | C154: EMR | D154: Eastern Mediterranean | E154: EMRO B | F154: High | G154: QAR | H154: QAR | I154: Qatari Riyals | J154: Eastern Med (B)
A155: KOR | B155: Republic of Korea | C155: WPR | D155: Western Pacific | E155: WPRO B | F155: High | G155: KRW | H155: KRW | I155: Korean Wons | J155: W. Pacific (B)
A156: MDA | B156: Republic of Moldova | C156: EUR | D156: European | E156: EURO C | F156: Lower middle | J156: European (C)
A157: ROU | B157: Romania | C157: EUR | D157: European | E157: EURO B | F157: Lower middle | G157: RON | H157: lei | I157: Romanian New Leus | J157: European (B)
A158: RUS | B158: Russian Federation | C158: EUR | D158: European | E158: EURO C | F158: High | G158: RUB | H158: руб | I158: Russian Rubles | J158: European (C)
A159: RWA | B159: Rwanda | C159: AFR | D159: African | E159: AFRO E | F159: Low | J159: African (E)
A160: KNA | B160: Saint Kitts & Nevis | C160: AMR | D160: Americas | E160: AMRO B | F160: High | J160: Americas (B)
A161: LCA | B161: Saint Lucia | C161: AMR | D161: Americas | E161: AMRO B | F161: Upper middle | J161: Americas (B)
A162: VCT | B162: Saint Vincent & the Grenadines | C162: AMR | D162: Americas | E162: AMRO B | F162: Upper middle | J162: Americas (B)
A163: WSM | B163: Samoa | C163: WPR | D163: Western Pacific | E163: WPRO B | F163: Lower middle | J163: W. Pacific (B)
A164: SMR | B164: San Marino | C164: EUR | D164: European | E164: EURO A | F164: High | J164: European (A)
A165: STP | B165: Sao Tome & Principe | C165: AFR | D165: African | E165: AFRO D | F165: Lower middle | J165: African (D)
A166: SAU | B166: Saudi Arabia | C166: EMR | D166: Eastern Mediterranean | E166: EMRO B | F166: High | G166: SAR | H166: SAR | I166: Saudi Riyals | J166: Eastern Med (B)
A167: SEN | B167: Senegal | C167: AFR | D167: African | E167: AFRO D | F167: Lower middle | J167: African (D)
A168: SRB | B168: Serbia | C168: EUR | D168: European | E168: EURO B | F168: Upper middle | G168: RSD | H168: RSD | I168: Serbian Dinars | J168: European (B)
A169: SYC | B169: Seychelles | C169: AFR | D169: African | E169: AFRO D | F169: Upper middle | G169: SCR | H169: SCR | I169: Seychelles Rupees | J169: African (D)
A170: SLE | B170: Sierra Leone | C170: AFR | D170: African | E170: AFRO D | F170: Low | J170: African (D)
A171: SGP | B171: Singapore | C171: WPR | D171: Western Pacific | E171: WPRO A | F171: High | G171: SGD | H171: $ | I171: Singapore Dollars | J171: W. Pacific (A)
A172: SXM | B172: Sint Maarten (Dutch part) | C172: EUR | D172: European | E172: EURO A | F172: High | J172: European (A)
A173: SVK | B173: Slovak Republic | C173: EUR | D173: European | E173: EURO B | F173: High | G173: EUR | H173: € | I173: Euros | J173: European (B)
A174: SVN | B174: Slovenia | C174: EUR | D174: European | E174: EURO A | F174: High | G174: EUR | H174: € | I174: Euros | J174: European (A)
A175: SLB | B175: Solomon Islands | C175: WPR | D175: Western Pacific | E175: WPRO B | F175: Lower middle | G175: SBD | H175: $ | I175: Solomon Islands Dollars | J175: W. Pacific (B)
A176: SOM | B176: Somalia | C176: EMR | D176: Eastern Mediterranean | E176: EMRO D | F176: Low | J176: Eastern Med (D)
A177: ZAF | B177: South Africa | C177: AFR | D177: African | E177: AFRO E | F177: Upper middle | G177: ZAR | H177: R | I177: S. African Rands | J177: African (E)
A178: SSD | B178: South Sudan | C178: EMR | D178: Eastern Mediterranean | E178: EMRO D | F178: Lower middle | J178: Eastern Med (D)
A179: ESP | B179: Spain | C179: EUR | D179: European | E179: EURO A | F179: High | G179: EUR | H179: € | I179: Euros | J179: European (A)
A180: LKA | B180: Sri Lanka | C180: SEAR | D180: South-East Asia | E180: SEARO B | F180: Lower middle | G180: LKR | H180: LKR | I180: Sri Lankan Rupees | J180: SE Asia (B)
A181: MAF | B181: St. Martin (French part) | C181: EUR | D181: European | E181: EURO A | F181: High | J181: European (A)
A182: SDN | B182: Sudan | C182: EMR | D182: Eastern Mediterranean | E182: EMRO D | F182: Lower middle | J182: Eastern Med (D)
A183: SUR | B183: Suriname | C183: AMR | D183: Americas | E183: AMRO B | F183: Upper middle | G183: SRD | H183: $ | I183: Suriname Dollars | J183: Americas (B)
A184: SWZ | B184: Swaziland | C184: AFR | D184: African | E184: AFRO E | F184: Lower middle | J184: African (E)
A185: SWE | B185: Sweden | C185: EUR | D185: European | E185: EURO A | F185: High | G185: SEK | H185: kr | I185: Swedish Kronas | J185: European (A)
A186: CHE | B186: Switzerland | C186: EUR | D186: European | E186: EURO A | F186: High | G186: CHF | H186: CHF | I186: Swiss Francs | J186: European (A)
A187: SYR | B187: Syrian Arab Republic | C187: EMR | D187: Eastern Mediterranean | E187: EMRO B | F187: Lower middle | G187: SYP | H187: £ | I187: Syrian Pounds | J187: Eastern Med (B)
A188: TJK | B188: Tajikistan | C188: EUR | D188: European | E188: EURO B | F188: Low | J188: European (B)
A189: THA | B189: Thailand | C189: SEAR | D189: South-East Asia | E189: SEARO B | F189: Upper middle | G189: THB | H189: THB | I189: Thai Bahts | J189: SE Asia (B)
A190: MKD | B190: The former Yugoslav Republic of Macedonia | C190: EUR | D190: European | E190: EURO B | F190: Upper middle | G190: MKD | H190: MKD | I190: Macedonian Denars | J190: European (B)
A191: TLS | B191: Timor-Leste | C191: SEAR | D191: South-East Asia | E191: SEARO D | F191: Low | J191: SE Asia (D)
A192: TGO | B192: Togo | C192: AFR | D192: African | E192: AFRO D | F192: Low | J192: African (D)
A193: TON | B193: Tonga | C193: WPR | D193: Western Pacific | E193: WPRO B | F193: Upper middle | J193: W. Pacific (B)
A194: TTO | B194: Trinidad & Tobago | C194: AMR | D194: Americas | E194: AMRO B | F194: High | G194: TTD | H194: TT$ | I194: Trinidad & Tobago Dollars | J194: Americas (B)
A195: TUN | B195: Tunisia | C195: EMR | D195: Eastern Mediterranean | E195: EMRO B | F195: Upper middle | J195: Eastern Med (B)
A196: TUR | B196: Turkey | C196: EUR | D196: European | E196: EURO B | F196: Upper middle | G196: TRY | H196: 0 | I196: Turkish Liras | J196: European (B)
A197: TKM | B197: Turkmenistan | C197: EUR | D197: European | E197: EURO B | F197: Upper middle | J197: European (B)
A198: TCA | B198: Turks & Caicos Islands | C198: RESIDUAL | D198: Residual | E198: RESIDUAL | F198: High
A199: TUV | B199: Tuvalu | C199: WPR | D199: Western Pacific | E199: WPRO B | F199: Upper middle | J199: W. Pacific (B)
A200: UGA | B200: Uganda | C200: AFR | D200: African | E200: AFRO E | F200: Low | J200: African (E)
... 16 more rows

Sheet GDP Annual Data (2005-13 Int$)
A1: Country Code | B1: Country Name | C1: 2005 | D1: 2006 | E1: 2007 | F1: 2008 | G1: 2009 | H1: 2010 | I1: 2011 | J1: 2012 | K1: 2013
A2: ABW | B2: Aruba | C2: 23302.83199 | D2: 24015.42061 | E2: 25921.28214 | F2: 27549.34573 | G2: 24639.93533 | H2: 24289.14152 | I2: 25354.78247
A3: AND | B3: Andorra | C3: 31268.96674 | D3: 34484.70086 | E3: 39922.89012 | F3: 46418.41547
A4: AFG | B4: Afghanistan | C4: 252.4078925 | D4: 275.3509409 | E4: 373.5914162 | F4: 376.9776699 | G4: 450.659239 | H4: 561.1976175 | I4: 613.9791916 | J4: 687.5813677 | K4: 678.3478881 | L4: EMR | M4: EMRO D | N4: Low
A5: AGO | B5: Angola | C5: 1706.543616 | D5: 2440.631716 | E5: 3412.718998 | F5: 4596.268431 | G5: 3988.683557 | H5: 4218.649126 | I5: 5159.233666 | J5: 5539.346932 | K5: 5668.116799 | L5: AFR | M5: AFRO D | N5: Low
A6: ALB | B6: Albania | C6: 2798.949633 | D6: 3076.979844 | E6: 3638.710813 | F6: 4422.692446 | G6: 4175.779349 | H6: 4175.120239 | I6: 4556.144342 | J6: 4406.116378 | K6: 4652.351395 | L6: EUR | M6: EURO B | N6: Lower middle
A7: ANR | B7: Andean Region
A8: ARB | B8: Arab World | C8: 3795.870241 | D8: 4410.846345 | E8: 5045.49591 | F8: 6253.284174 | G8: 5268.409287 | H8: 6060.831219 | I8: 7042.957136 | J8: 7626.669716 | K8: 7709.949189
A9: ARE | B9: United Arab Emirates | C9: 43533.89178 | D9: 45554.2194 | E9: 44488.64986 | F9: 46402.64477 | G9: 33012.81512 | H9: 34048.51735 | I9: 39057.83706 | J9: 41691.69503 | L9: EMR | M9: EMRO B | N9: High
A10: ARG | B10: Argentina | C10: 5767.657012 | D10: 6783.713975 | E10: 8384.187712 | F10: 10232.95908 | G10: 9456.816314 | H10: 11460.37615 | I10: 13693.70379 | J10: 14679.92524 | K10: 14715.18002
A11: ARM | B11: Armenia | C11: 1625.396904 | D11: 2126.089566 | E11: 3079.152187 | F11: 3916.738107 | G11: 2913.574143 | H11: 3124.784854 | I11: 3421.704509 | J11: 3353.973125 | K11: 3504.766758 | L11: EUR | M11: EURO B | N11: Low
A12: ASM | B12: American Samoa
A13: ATG | B13: Antigua and Barbuda | C13: 12135.54103 | D13: 13675.08524 | E13: 15276.12636 | F13: 15787.03216 | G13: 13977.94086 | H13: 13017.49975 | I13: 12785.15561 | J13: 13406.16908 | K13: 13668.94482 | L13: AMR | M13: AMRO B | N13: Upper middle
A14: AUS | B14: Australia | C14: 34011.73864 | D14: 36113.0024 | E14: 40996.31791 | F14: 49672.74801 | G14: 42721.88494 | H14: 51824.79842 | I14: 62080.98242 | J14: 67435.95443 | K14: 67468.06871 | L14: WPR | M14: WPRO A | N14: High
A15: AUT | B15: Austria | C15: 37067.32383 | D15: 39299.62251 | E15: 45181.49851 | F15: 49679.13172 | G15: 45872.19805 | H15: 45016.70385 | I15: 49485.48219 | J15: 46792.16569 | K15: 49053.8229 | L15: EUR | M15: EURO A | N15: High
A16: AZE | B16: Azerbaijan | C16: 1578.36733 | D16: 2472.997476 | E16: 3851.437869 | F16: 5574.603802 | G16: 4950.294791 | H16: 5842.805784 | I16: 7189.691229 | J16: 7393.771877 | K16: 7811.789819 | L16: EUR | M16: EURO B | N16: Low
A17: BDI | B17: Burundi | C17: 143.7835295 | D17: 158.3050232 | E17: 162.8275094 | F17: 186.8717489 | G17: 194.8966661 | H17: 219.5297995 | I17: 246.9143271 | J17: 251.0145178 | K17: 267.4758992 | L17: AFR | M17: AFRO E | N17: Low
A18: BEL | B18: Belgium | C18: 36011.4694 | D18: 37918.78113 | E18: 43255.42488 | F18: 47374.46816 | G18: 43834.08095 | H18: 43150.78431 | I18: 46463.60378 | J18: 43395.69898 | K18: 45387.17553 | L18: EUR | M18: EURO A | N18: High
A19: BEN | B19: Benin | C19: 532.6109983 | D19: 557.2324469 | E19: 632.3608696 | F19: 739.2561276 | G19: 712.616527 | H19: 689.6483313 | I19: 745.9154748 | J19: 750.5131242 | K19: 804.6728916 | L19: AFR | M19: AFRO D | N19: Low
A20: BFA | B20: Burkina Faso | C20: 406.9988043 | D20: 422.8448175 | E20: 474.5899781 | F20: 569.6392934 | G20: 553.0423743 | H20: 592.6074699 | I20: 649.92523 | J20: 651.6533151 | K20: 683.9484018 | L20: AFR | M20: AFRO D | N20: Low
A21: BGD | B21: Bangladesh | C21: 421.1233114 | D21: 427.291167 | E21: 467.1363614 | F21: 537.6384971 | G21: 597.6909532 | H21: 664.0846049 | I21: 732.0674891 | J21: 750.0799564 | K21: 829.2514892 | L21: SEAR | M21: SEARO D | N21: Low
A22: BGR | B22: Bulgaria | C22: 3733.263161 | D22: 4313.430636 | E22: 5581.414132 | F22: 6916.84628 | G22: 6524.156879 | H22: 6453.375276 | I22: 7286.389592 | J22: 7022.234589 | K22: 7296.490124 | L22: EUR | M22: EURO B | N22: Lower middle
A23: BHR | B23: Bahrain | C23: 18156.37747 | D23: 19459.73121 | E23: 21049.57341 | F23: 23037.87857 | G23: 19251.12373 | H23: 20545.96945 | I23: 22466.88388 | J23: 23039.68422 | K23: 24612.54206 | L23: EMR | M23: EMRO B | N23: High
A24: BHS | B24: Bahamas, The | C24: 23416.90369 | D24: 23733.80768 | E24: 24321.06511 | F24: 23674.14021 | G24: 22060.92098 | H24: 21881.08394 | I24: 21490.35708 | J24: 21908.28046 | L24: AMR | M24: AMRO B | N24: High
A25: BIH | B25: Bosnia and Herzegovina | C25: 2821.78775 | D25: 3199.896836 | E25: 3949.842081 | F25: 4802.466744 | G25: 4433.146179 | H25: 4361.994015 | I25: 4754.197861 | J25: 4395.828895 | K25: 4655.597023 | L25: EUR | M25: EURO B | N25: Lower middle
A26: BLR | B26: Belarus | C26: 3126.367778 | D26: 3848.596299 | E26: 4735.953138 | F26: 6377.359692 | G26: 5176.044701 | H26: 5818.854859 | I26: 6305.773662 | J26: 6721.834908 | K26: 7575.48211 | L26: EUR | M26: EURO C | N26: Lower middle
A27: BLZ | B27: Belize | C27: 4097.528685 | D27: 4363.854688 | E27: 4509.147577 | F27: 4665.399395 | G27: 4446.607489 | H27: 4531.829744 | I27: 4707.8538 | J27: 4852.496451 | K27: 4834.287436 | L27: AMR | M27: AMRO B | N27: Lower middle
A28: BMU | B28: Bermuda | C28: 75882.03386 | D28: 83912.6978 | E28: 90849.58698 | F28: 93605.74817 | G28: 88463.31282 | H28: 88207.32756 | I28: 85973.15842 | J28: 84470.75527 | L28: RESIDUAL | M28: RESIDUAL | N28: High
A29: BOL | B29: Bolivia | C29: 1020.790305 | D29: 1203.254183 | E29: 1355.887234 | F29: 1695.562179 | G29: 1735.14337 | H29: 1934.666067 | I29: 2319.595984 | J29: 2575.683695 | K29: 2867.639791 | L29: AMR | M29: AMRO D | N29: Lower middle
A30: BRA | B30: Brazil | C30: 4739.305437 | D30: 5787.975574 | E30: 7193.924995 | F30: 8622.551938 | G30: 8373.45773 | H30: 10978.26024 | I30: 12576.19559 | J30: 11319.97371 | K30: 11208.08274 | L30: AMR | M30: AMRO B | N30: Upper middle
A31: BRB | B31: Barbados | C31: 14224.98245 | D31: 15691.84826 | E31: 16335.95992 | F31: 16358.04693 | G31: 16460.75712 | H31: 15812.27978 | I31: 15503.32855 | J31: 14917.14951 | L31: AMR | M31: AMRO B | N31: Upper middle
A32: BRN | B32: Brunei Darussalam | C32: 25913.57837 | D32: 30613.27687 | E32: 32109.09775 | F32: 37093.9909 | G32: 27211.88206 | H32: 30880.34486 | I32: 41059.94509 | J32: 41126.61284 | K32: 38563.31451 | L32: WPR | M32: WPRO A | N32: High
A33: BTN | B33: Bhutan | C33: 1258.990995 | D33: 1348.730837 | E33: 1760.60263 | F33: 1817.781057 | G33: 1795.14947 | H33: 2211.340513 | I33: 2523.674845 | J33: 2508.900462 | K33: 2498.390915 | L33: SEAR | M33: SEARO D | N33: Low
A34: BWA | B34: Botswana | C34: 5294.379478 | D34: 5341.397472 | E34: 5711.728492 | F34: 5746.978872 | G34: 5178.439109 | H34: 6980.361809 | I34: 7697.396215 | J34: 7254.562607 | K34: 7316.883998 | L34: AFR | M34: AFRO E | N34: Upper middle
A35: CAA | B35: Sub-Saharan Africa (IFC classification)
A36: CAF | B36: Central African Republic | C36: 340.9078669 | D36: 365.4970833 | E36: 413.4814386 | F36: 474.389479 | G36: 464.5132313 | H36: 456.5634087 | I36: 494.9260803 | J36: 479.4709839 | K36: 333.1968806 | L36: AFR | M36: AFRO E | N36: Low
A37: CAN | B37: Canada | C37: 36029.32267 | D37: 40244.8531 | E37: 44328.50977 | F37: 46398.70244 | G37: 40764.1215 | H37: 47465.34593 | I37: 51790.56695 | J37: 52409.19313 | K37: 51958.38124 | L37: AMR | M37: AMRO A | N37: High
A38: CEA | B38: East Asia and the Pacific (IFC classification)
A39: CEB | B39: Central Europe and the Baltics | C39: 8190.399796 | D39: 9276.139207 | E39: 11710.35676 | F39: 14194.34482 | G39: 11900.30921 | H39: 12236.92142 | I39: 13447.31069 | J39: 12620.38034 | K39: 13341.10236
A40: CEU | B40: Europe and Central Asia (IFC classification)
A41: CHE | B41: Switzerland | C41: 51734.44238 | D41: 54140.35421 | E41: 59663.97736 | F41: 68555.37187 | G41: 65789.96479 | H41: 70173.95805 | I41: 83270.24474 | J41: 78928.90422 | K41: 80477.42753 | L41: EUR | M41: EURO A | N41: High
A42: CHI | B42: Channel Islands | C42: 57209.24916 | D42: 62263.83121 | E42: 73577.16661
A43: CHL | B43: Chile | C43: 7614.522058 | D43: 9371.427857 | E43: 10378.9907 | F43: 10685.9866 | G43: 10141.60351 | H43: 12681.7652 | I43: 14510.9661 | J43: 15245.468 | K43: 15732.31377 | L43: AMR | M43: AMRO B | N43: Upper middle
A44: CHN | B44: China | C44: 1731.125235 | D44: 2069.34363 | E44: 2651.260119 | F44: 3413.588648 | G44: 3748.504063 | H44: 4433.340886 | I44: 5447.309378 | J44: 6092.781886 | K44: 6807.430824 | L44: WPR | M44: WPRO B | N44: Lower middle
A45: CIV | B45: Cote d'Ivoire | C45: 940.7521438 | D45: 983.2914236 | E45: 1102.882499 | F45: 1282.267081 | G45: 1238.708134 | H45: 1207.84514 | I45: 1241.599319 | J45: 1243.986075 | K45: 1521.221184 | L45: AFR | M45: AFRO E | N45: Low
A46: CLA | B46: Latin America and the Caribbean (IFC classification)
A47: CME | B47: Middle East and North Africa (IFC classification)
A48: CMR | B48: Cameroon | C48: 914.5531201 | D48: 964.6015355 | E48: 1069.856826 | F48: 1211.304186 | G48: 1102.520394 | H48: 1090.619066 | I48: 1204.698212 | J48: 1219.957975 | K48: 1315.494357 | L48: AFR | M48: AFRO D | N48: Low
A49: COG | B49: Congo, Rep. | C49: 1718.100815 | D49: 2120.097846 | E49: 2233.308252 | F49: 3059.226535 | G49: 2401.298155 | H49: 2920.406708 | I49: 3414.05471 | J49: 3153.739525 | K49: 3172.05628 | L49: AFR | M49: AFRO E | N49: Low
A50: COL | B50: Colombia | C50: 3392.924413 | D50: 3712.785525 | E50: 4663.54289 | F50: 5405.101152 | G50: 5104.991193 | H50: 6179.770329 | I50: 7124.54892 | J50: 7762.970829 | K50: 7825.678358 | L50: AMR | M50: AMRO B | N50: Lower middle
A51: COM | B51: Comoros | C51: 644.2731325 | D51: 653.9537251 | E51: 734.8228633 | F51: 816.4782254 | G51: 803.4861078 | H51: 795.4784368 | I51: 871.6920171 | J51: 830.5174617 | K51: 894.3879217 | L51: AFR | M51: AFRO D | N51: Low
A52: CPV | B52: Cabo Verde | C52: 2030.658982 | D52: 2298.814822 | E52: 3129.818793 | F52: 3692.002673 | G52: 3524.330353 | H52: 3413.263369 | I52: 3801.449765 | J52: 3554.411133 | K52: 3784.595505 | L52: AFR | M52: AFRO D | N52: Lower middle
A53: CRI | B53: Costa Rica | C53: 4621.364127 | D53: 5128.400753 | E53: 5897.527844 | F53: 6581.308114 | G53: 6385.56513 | H53: 7773.185487 | I53: 8704.111887 | J53: 9442.66454 | K53: 10184.60567 | L53: AMR | M53: AMRO B | N53: Upper middle
A54: CSA | B54: South Asia (IFC classification)
A55: CSS | B55: Caribbean small states | C55: 6995.694072 | D55: 7825.292078 | E55: 8660.199535 | F55: 9819.515682 | G55: 8209.811486 | H55: 8623.592248 | I55: 9225.425499 | J55: 9372.779537 | K55: 9565.028825
A56: CUB | B56: Cuba | C56: 3776.470549 | D56: 4666.988169 | E56: 5185.382272 | F56: 5382.815961 | G56: 5499.120103 | H56: 5701.962671 | I56: 6051.222001
A57: CUW | B57: Curacao
A58: CYM | B58: Cayman Islands
A59: CYP | B59: Cyprus | C59: 22430.60642 | D59: 23863.55546 | E59: 27860.27611 | F59: 31928.3968 | G59: 29427.90879 | H59: 27889.03718 | I59: 29206.5106 | J59: 26352.27122 | K59: 25248.98107 | L59: EUR | M59: EURO A | N59: High
A60: CZE | B60: Czech Republic | C60: 12737.60581 | D60: 14491.20633 | E60: 17524.19035 | F60: 21707.79076 | G60: 18880.54167 | H60: 18950.33508 | I60: 20584.92655 | J60: 18689.96717 | K60: 18861.42546 | L60: EUR | M60: EURO A | N60: Upper middle
A61: DEU | B61: Germany | C61: 33542.78138 | D61: 35237.61063 | E61: 40403.01773 | F61: 44132.06048 | G61: 40270.14217 | H61: 40407.96125 | I61: 44354.68494 | J61: 42597.71729 | K61: 45084.86688 | L61: EUR | M61: EURO A | N61: High
A62: DJI | B62: Djibouti | C62: 912.4992045 | D62: 976.2929868 | E62: 1061.637092 | F62: 1233.311121 | G62: 1458.873787 | H62: 1353.193028 | I62: 1463.592224 | J62: 1574.628968 | K62: 1668.336703
A63: DMA | B63: Dominica | C63: 5126.249862 | D63: 5408.1078 | E63: 5827.990573 | F63: 6379.840332 | G63: 6797.461724 | H63: 6677.043927 | I63: 6883.397732 | J63: 6913.056687 | K63: 7011.024746 | L63: AMR | M63: AMRO B | N63: Upper middle
A64: DNK | B64: Denmark | C64: 47546.59459 | D64: 50462.24772 | E64: 57021.16445 | F64: 62596.47831 | G64: 56226.61511 | H64: 56410.83284 | I64: 59911.90466 | J64: 56364.18286 | K64: 58893.99899 | L64: EUR | M64: EURO A | N64: High
A65: DOM | B65: Dominican Republic | C65: 3635.706812 | D65: 3794.07334 | E65: 4297.515241 | F65: 4696.950916 | G65: 4702.925603 | H65: 5089.467926 | I65: 5462.696584 | J65: 5733.451158 | K65: 5826.126338 | L65: AMR | M65: AMRO B | N65: Lower middle
A66: DZA | B66: Algeria | C66: 3038.748713 | D66: 3391.367826 | E66: 3845.847296 | F66: 4786.51807 | G66: 3771.284844 | H66: 4349.569325 | I66: 5271.590312 | J66: 5309.822369 | K66: 5360.701146 | L66: AFR | M66: AFRO D | N66: Lower middle
A67: EAP | B67: East Asia & Pacific (developing only) | C67: 1623.083941 | D67: 1936.265744 | E67: 2426.868843 | F67: 3045.72228 | G67: 3262.165336 | H67: 3885.29261 | I67: 4699.640785 | J67: 5187.3891 | K67: 5689.974641
A68: EAS | B68: East Asia & Pacific (all income levels) | C68: 4726.141779 | D68: 4978.844083 | E68: 5537.280028 | F68: 6340.20081 | G68: 6469.443686 | H68: 7460.171708 | I68: 8558.806236 | J68: 9076.579408 | K68: 9107.832948
A69: ECA | B69: Europe & Central Asia (developing only) | C69: 3873.022074 | D69: 4447.899204 | E69: 5613.392399 | F69: 6658.562085 | G69: 5500.386012 | H69: 6177.357635 | I69: 6852.422051 | J69: 6907.210472 | K69: 7287.401555
A70: ECS | B70: Europe & Central Asia (all income levels) | C70: 18463.0075 | D70: 19926.17913 | E70: 23224.51551 | F70: 25410.81029 | G70: 22227.14353 | H70: 22696.89217 | I70: 24886.94168 | J70: 23852.39622 | K70: 24770.1594
A71: ECU | B71: Ecuador | C71: 3012.752437 | D71: 3337.400363 | E71: 3574.877893 | F71: 4255.851995 | G71: 4236.777555 | H71: 4500.591558 | I71: 5035.242493 | J71: 5424.633611 | K71: 5720.179922 | L71: AMR | M71: AMRO D | N71: Lower middle
A72: EGY | B72: Egypt, Arab Rep. | C72: 1249.49326 | D72: 1472.570548 | E72: 1757.760484 | F72: 2156.762969 | G72: 2461.530857 | H72: 2803.532963 | I72: 2972.583516 | J72: 3256.018469 | K72: 3314.462928 | L72: EMR | M72: EMRO D | N72: Lower middle
A73: EMU | B73: Euro area | C73: 31145.50302 | D73: 32879.71849 | E73: 37622.76591 | F73: 40993.23827 | G73: 37375.55252 | H73: 36519.30521 | I73: 39314.0318 | J73: 36650.3892 | K73: 38167.08916
A74: ERI | B74: Eritrea | C74: 226.2898568 | D74: 240.5468163 | E74: 252.9776299 | F74: 256.4375698 | G74: 334.0648852 | H74: 368.7477582 | I74: 439.5423714 | J74: 504.3234084 | K74: 543.8219083 | L74: AFR | M74: AFRO E | N74: Low
A75: ESP | B75: Spain | C75: 25904.17315 | D75: 27847.45678 | E75: 31871.09026 | F75: 34674.17419 | G75: 31368.49508 | H75: 29732.43795 | I75: 31117.89747 | J75: 28281.56318 | K75: 29117.63693 | L75: EUR | M75: EURO A | N75: High
A76: EST | B76: Estonia | C76: 10264.11113 | D76: 12472.80527 | E76: 16404.86471 | F76: 17786.05012 | G76: 14542.07485 | H76: 14295.03062 | I76: 16982.30031 | J76: 16887.37532 | K76: 18478.26985 | L76: EUR | M76: EURO C | N76: Upper middle
A77: ETH | B77: Ethiopia | C77: 159.8314365 | D77: 191.6040212 | E77: 240.5081531 | F77: 321.604188 | G77: 375.3429575 | H77: 337.3961428 | I77: 350.8953116 | J77: 466.6494385 | K77: 498.0756751 | L77: AFR | M77: AFRO E | N77: Low
A78: EUU | B78: European Union | C78: 27909.28251 | D78: 29651.40966 | E78: 34161.99939 | F78: 36612.63362 | G78: 32599.16682 | H78: 32381.80642 | I78: 34920.83232 | J78: 32917.26143 | K78: 34243.88226
A79: FCS | B79: Fragile and conflict affected situations | C79: 741.5369102 | D79: 871.4703791 | E79: 1074.156618 | F79: 1340.631542 | G79: 1155.184172 | H79: 1335.712237 | I79: 1389.852154 | J79: 1543.670568 | K79: 1581.062507
A80: FIN | B80: Finland | C80: 37318.79732 | D80: 39487.06231 | E80: 46538.20312 | F80: 51186.50681 | G80: 44837.68846 | H80: 44134.04836 | I80: 48694.53514 | J80: 45649.16159 | K80: 47218.77196 | L80: EUR | M80: EURO A | N80: High
A81: FJI | B81: Fiji | C81: 3655.663836 | D81: 3747.433691 | E81: 4075.991405 | F81: 4301.63219 | G81: 3431.75588 | H81: 3747.674635 | I81: 4324.685529 | J81: 4613.269939 | K81: 4571.641756 | L81: WPR | M81: WPRO B | N81: Lower middle
A82: FRA | B82: France | C82: 33818.97269 | D82: 35457.05773 | E82: 40341.94274 | F82: 43991.71814 | G82: 40487.89707 | H82: 39448.09885 | I82: 42578.17709 | J82: 39758.68165 | K82: 41420.75667 | L82: EUR | M82: EURO A | N82: High
A83: FRO | B83: Faeroe Islands | C83: 35211.55269 | D83: 39869.98014 | E83: 45974.69186 | F83: 48645.38402 | G83: 44317.30589
A84: FSM | B84: Micronesia, Fed. Sts. | C84: 2352.63934 | D84: 2393.800551 | E84: 2434.806287 | F84: 2500.905686 | G84: 2668.810506 | H84: 2838.448841 | I84: 3000.150055 | J84: 3154.513862 | K84: 3235.183343 | L84: WPR | M84: WPRO B | N84: Lower middle
A85: GAB | B85: Gabon | C85: 6281.954684 | D85: 6756.271159 | E85: 7994.304825 | F85: 10577.91676 | G85: 7919.710893 | H85: 9362.113583 | I85: 11791.58778 | J85: 10929.87964 | K85: 11571.08292 | L85: AFR | M85: AFRO D | N85: Upper middle
A86: GBR | B86: United Kingdom | C86: 38432.31116 | D86: 40807.56096 | E86: 46591.12819 | F86: 43486.91323 | G86: 35454.94893 | H86: 36572.50006 | I86: 38927.06931 | J86: 38648.90075 | K86: 39336.90523 | L86: EUR | M86: EURO A | N86: High
A87: GEO | B87: Georgia | C87: 1469.974624 | D87: 1764.870436 | E87: 2317.988501 | F87: 2919.690052 | G87: 2440.961318 | H87: 2613.756931 | I87: 3219.605869 | J87: 3528.733736 | K87: 3602.168472 | L87: EUR | M87: EURO B | N87: Low
A88: GHA | B88: Ghana | C88: 501.8642947 | D88: 929.9455454 | E88: 1099.084759 | F88: 1234.437253 | G88: 1096.533657 | H88: 1326.066112 | I88: 1594.030809 | J88: 1645.515162 | K88: 1850.201186 | L88: AFR | M88: AFRO D | N88: Low
A89: GIN | B89: Guinea | C89: 306.7011791 | D89: 287.9229857 | E89: 411.4847069 | F89: 437.8056827 | G89: 435.1756629 | H89: 435.448888 | I89: 454.0022776 | J89: 493.4899526 | K89: 527.264369 | L89: AFR | M89: AFRO D | N89: Low
A90: GMB | B90: Gambia, The | C90: 434.4954445 | D90: 441.9196561 | E90: 522.3399183 | F90: 612.0285776 | G90: 553.0993514 | H90: 566.3353254 | I90: 517.752432 | J90: 510.3262294 | K90: 494.4039288 | L90: AFR | M90: AFRO D | N90: Low
A91: GNB | B91: Guinea-Bissau | C91: 402.9880469 | D91: 398.2471791 | E91: 465.3402625 | F91: 555.6594653 | G91: 536.8028066 | H91: 526.5210239 | I91: 595.8292485 | J91: 494.3143778 | K91: 503.8278435 | L91: AFR | M91: AFRO D | N91: Low
A92: GNQ | B92: Equatorial Guinea | C92: 11456.75831 | D92: 13003.63858 | E92: 15943.79407 | F92: 23432.38666 | G92: 13858.90341 | H92: 16643.1438 | I92: 21949.62283 | J92: 22391.46179 | K92: 20572.33597 | L92: AFR | M92: AFRO D | N92: Low
A93: GRC | B93: Greece | C93: 21642.25847 | D93: 23518.49931 | E93: 27361.09709 | F93: 30536.44871 | G93: 28695.23153 | H93: 26379.5302 | I93: 26061.44027 | J93: 22395.14973 | K93: 21910.22068 | L93: EUR | M93: EURO A | N93: High
A94: GRD | B94: Grenada | C94: 6803.545292 | D94: 6825.126244 | E94: 7326.172219 | F94: 7946.79128 | G94: 7397.037929 | H94: 7366.576206 | I94: 7409.2402 | J94: 7598.205088 | K94: 7876.276564 | L94: AMR | M94: AMRO B | N94: Upper middle
A95: GRL | B95: Greenland | C95: 29903.28404 | D95: 30620.21553 | E95: 37516.75092 | F95: 30883.03497 | G95: 22507.88872
A96: GTM | B96: Guatemala | C96: 2146.179053 | D96: 2326.299385 | E96: 2561.4419 | F96: 2867.494247 | G96: 2697.379264 | H96: 2882.389487 | I96: 3240.372419 | J96: 3340.782301 | K96: 3477.890168 | L96: AMR | M96: AMRO D | N96: Lower middle
A97: GUM | B97: Guam
A98: GUY | B98: Guyana | C98: 1084.179401 | D98: 1905.555188 | E98: 2258.981009 | F98: 2478.408487 | G98: 2593.37062 | H98: 2873.952008 | I98: 3257.884864 | J98: 3584.693489 | K98: 3846.527721 | L98: AMR | M98: AMRO B | N98: Lower middle
A99: HIC | B99: High income | C99: 30063.42062 | D99: 31697.44839 | E99: 34584.93433 | F99: 36684.80456 | G99: 33916.88517 | H99: 35563.92523 | I99: 38336.9744 | J99: 38389.2778 | K99: 38634.22682
A100: HKG | B100: Hong Kong SAR, China | C100: 26649.7508 | D100: 28224.21506 | E100: 30594.01784 | F100: 31515.66277 | G100: 30697.34038 | H100: 32549.99823 | I100: 35142.54243 | J100: 36707.86433 | K100: 38123.52212 | L100: WPR | M100: WPRO B | N100: Lower middle
A101: HND | B101: Honduras | C101: 1401.978767 | D101: 1540.580359 | E101: 1710.050946 | F101: 1883.232362 | G101: 1952.850106 | H101: 2078.32576 | I101: 2277.366515 | J101: 2339.292439 | K101: 2290.778713 | L101: AMR | M101: AMRO B | N101: Lower middle
A102: HPC | B102: Heavily indebted poor countries (HIPC) | C102: 433.3888792 | D102: 502.1824793 | E102: 583.13683 | F102: 681.9039561 | G102: 660.9580575 | H102: 709.2727502 | I102: 769.9683517 | J102: 805.5841956 | K102: 857.2328279
A103: HRV | B103: Croatia | C103: 10090.36669 | D103: 11228.62138 | E103: 13372.27013 | F103: 15694.07747 | G103: 14044.14626 | H103: 13326.59867 | I103: 14371.95378 | J103: 13158.75097 | K103: 13529.88097 | L103: EUR | M103: EURO A | N103: Upper middle
A104: HTI | B104: Haiti | C104: 448.5848301 | D104: 519.7491433 | E104: 618.6149373 | F104: 679.431139 | G104: 674.3006914 | H104: 669.1869294 | I104: 749.2211756 | J104: 775.5446241 | K104: 819.9039143 | L104: AMR | M104: AMRO D | N104: Low
A105: HUN | B105: Hungary | C105: 10936.94861 | D105: 11173.56951 | E105: 13534.7055 | F105: 15364.67955 | G105: 12634.55114 | H105: 12750.29865 | I105: 13784.18353 | J105: 12560.06531 | K105: 13133.81935 | L105: EUR | M105: EURO C | N105: Upper middle
A106: IDN | B106: Indonesia | C106: 1273.465176 | D106: 1601.031191 | E106: 1871.288406 | F106: 2178.265663 | G106: 2272.040982 | H106: 2946.656061 | I106: 3469.753726 | J106: 3551.423737 | K106: 3475.250446 | L106: SEAR | M106: SEARO B | N106: Low
A107: IMN | B107: Isle of Man | C107: 36289.87962 | D107: 42402.06631 | E107: 49817.44469
A108: IND | B108: India | C108: 740.1142606 | D108: 830.1632213 | E108: 1068.678519 | F108: 1042.084209 | G108: 1147.238685 | H108: 1417.073614 | I108: 1539.606447 | J108: 1503.003703 | K108: 1498.872175 | L108: SEAR | M108: SEARO D | N108: Low
A109: INX | B109: Not classified
A110: IRL | B110: Ireland | C110: 48697.57924 | D110: 52118.81563 | E110: 59008.35506 | F110: 58810.91793 | G110: 49707.65437 | H110: 45916.68284 | I110: 49387.27333 | J110: 45921.69392 | K110: 47399.89572 | L110: EUR | M110: EURO A | N110: High
A111: IRN | B111: Iran, Islamic Rep. | C111: 2737.112118 | D111: 3140.19809 | E111: 3983.582294 | F111: 4899.31216 | G111: 4931.282897 | H111: 5674.923927 | I111: 7006.047183 | J111: 6578.121526 | K111: 4763.303309 | L111: EMR | M111: EMRO B | N111: Lower middle
A112: IRQ | B112: Iraq | C112: 1824.699866 | D112: 2321.152171 | E112: 3091.015329 | F112: 4472.055182 | G112: 3701.861626 | H112: 4612.523476 | I112: 6019.42088 | J112: 6625.223216 | K112: 6669.544863 | L112: EMR | M112: EMRO D | N112: Lower middle
A113: ISL | B113: Iceland | C113: 54885.29035 | D113: 54813.95469 | E113: 65566.30917 | F113: 53028.77783 | G113: 38039.18228 | H113: 39506.55887 | I113: 44019.3907 | J113: 42362.13055 | K113: 45262.50121 | L113: EUR | M113: EURO A | N113: High
A114: ISR | B114: Israel | C114: 19330.02435 | D114: 21405.15946 | E114: 24368.45395 | F114: 29160.24033 | G114: 27491.5133 | H114: 30389.10758 | I114: 33250.5065 | J114: 32567.08894 | K114: 36151.21209 | L114: EUR | M114: EURO A | N114: High
A115: ITA | B115: Italy | C115: 30814.05751 | D115: 32212.84691 | E115: 36400.47004 | F115: 39222.17723 | G115: 35724.4084 | H115: 34673.49552 | I115: 36988.16405 | J115: 33813.82221 | K115: 34619.2387 | L115: EUR | M115: EURO A | N115: High
A116: JAM | B116: Jamaica | C116: 4189.655883 | D116: 4486.555676 | E116: 4815.078502 | F116: 5118.703392 | G116: 4521.923804 | H116: 4917.023202 | I116: 5346.219339 | J116: 5463.762007 | K116: 5289.967803 | L116: AMR | M116: AMRO B | N116: Lower middle
A117: JOR | B117: Jordan | C117: 2325.42541 | D117: 2719.822469 | E117: 3022.541954 | F117: 3797.413629 | G117: 4026.766343 | H117: 4370.721033 | I117: 4665.94354 | J117: 4909.028094 | K117: 5214.190927 | L117: EMR | M117: EMRO B | N117: Lower middle
A118: JPN | B118: Japan | C118: 35781.16627 | D118: 34102.11478 | E118: 34095.02343 | F118: 37972.05574 | G118: 39473.36751 | H118: 43117.82967 | I118: 46203.69804 | J118: 46548.26964 | K118: 38492.08889 | L118: WPR | M118: WPRO A | N118: High
A119: KAZ | B119: Kazakhstan | C119: 3771.278957 | D119: 5291.574368 | E119: 6771.414797 | F119: 8513.564645 | G119: 7165.27705 | H119: 9070.649972 | I119: 11357.94549 | J119: 12120.30534 | K119: 13171.80739 | L119: EUR | M119: EURO C | N119: Lower middle
A120: KEN | B120: Kenya | C120: 523.6137892 | D120: 612.2325312 | E120: 721.4590107 | F120: 785.7342003 | G120: 771.2881085 | H120: 792.979037 | I120: 816.441535 | J120: 932.5182292 | K120: 994.3054057 | L120: AFR | M120: AFRO E | N120: Low
A121: KGZ | B121: Kyrgyz Republic | C121: 476.4800976 | D121: 543.1107024 | E121: 721.7686908 | F121: 966.3936272 | G121: 871.2243893 | H121: 880.0377751 | I121: 1123.883168 | J121: 1177.973597 | K121: 1263.448729 | L121: EUR | M121: EURO B | N121: Low
A122: KHM | B122: Cambodia | C122: 471.1625029 | D122: 536.6577307 | E122: 628.4268517 | F122: 742.5713353 | G122: 735.4192635 | H122: 782.6188886 | I122: 878.3830178 | J122: 945.4946464 | K122: 1007.566179 | L122: WPR | M122: WPRO B | N122: Low
A123: KIR | B123: Kiribati | C123: 1173.31415 | D123: 1138.284501 | E123: 1316.956881 | F123: 1424.038886 | G123: 1320.48003 | H123: 1539.047436 | I123: 1735.554046 | J123: 1736.198171 | K123: 1650.707224 | L123: WPR | M123: WPRO B | N123: Lower middle
A124: KNA | B124: St. Kitts and Nevis | C124: 10916.19012 | D124: 12634.96332 | E124: 13551.92484 | F124: 14377.12414 | G124: 13703.36721 | H124: 13222.45993 | I124: 13746.16579 | J124: 13658.02948 | K124: 13710.08033 | L124: AMR | M124: AMRO B | N124: Upper middle
A125: KOR | B125: Korea, Rep. | C125: 18657.46113 | D125: 20917.04119 | E125: 23101.4431 | F125: 20474.82554 | G125: 18338.70637 | H125: 22151.20912 | I125: 24155.8293 | J125: 24453.97135 | K125: 25976.95283 | L125: WPR | M125: WPRO B | N125: High
A126: KSV | B126: Kosovo | C126: 2194.372651 | D126: 2278.62418 | E126: 2736.487102 | F126: 3302.923939 | G126: 3190.835011 | H126: 3232.8112 | I126: 3702.051167 | J126: 3566.730911 | K126: 3815.591488 | L126: EUR | M126: EURO B | N126: Lower middle
A127: KWT | B127: Kuwait | C127: 35185.93067 | D127: 42011.77433 | E127: 44902.31827 | F127: 54548.61531 | G127: 37160.54324 | H127: 40090.74627 | I127: 51396.85386 | J127: 56366.57008 | L127: EMR | M127: EMRO B | N127: High
A128: LAC | B128: Latin America & Caribbean (developing only) | C128: 4838.892378 | D128: 5611.751199 | E128: 6573.712009 | F128: 7585.013206 | G128: 7030.359142 | H128: 8611.928376 | I128: 9539.820514 | J128: 9404.300881 | K128: 9616.841731
A129: LAO | B129: Lao PDR | C129: 472.4084631 | D129: 585.6405752 | E129: 702.2701311 | F129: 886.7596524 | G129: 930.5859445 | H129: 1122.852316 | I129: 1265.709344 | J129: 1412.452243 | K129: 1645.736625 | L129: WPR | M129: WPRO B | N129: Low
A130: LBN | B130: Lebanon | C130: 5339.42388 | D130: 5342.474802 | E130: 5936.769228 | F130: 6887.062753 | G130: 8274.137978 | H130: 8755.849968 | I130: 9144.617616 | J130: 9764.110607 | K130: 9928.038098 | L130: EMR | M130: EMRO B | N130: Upper middle
A131: LBR | B131: Liberia | C131: 165.7600834 | D131: 178.4537308 | E131: 209.8140849 | F131: 231.447496 | G131: 302.2803524 | H131: 326.6042804 | I131: 376.9284544 | J131: 413.7585727 | K131: 454.3374834 | L131: AFR | M131: AFRO D | N131: Low
A132: LBY | B132: Libya | C132: 7864.937572 | D132: 9933.108824 | E132: 12418.18359 | F132: 15853.46151 | G132: 10455.57487 | H132: 12375.44953 | I132: 5685.412227 | J132: 13302.79085 | K132: 12167.40251
A133: LCA | B133: St. Lucia | C133: 5492.864914 | D133: 6072.297574 | E133: 6732.660993 | F133: 6854.898712 | G133: 6735.159817 | H133: 7058.869216 | I133: 7228.865382 | J133: 7287.8208 | K133: 7308.938912 | L133: AMR | M133: AMRO B | N133: Upper middle
A134: LCN | B134: Latin America & Caribbean (all income levels) | C134: 5091.552111 | D134: 5896.412627 | E134: 6863.037712 | F134: 7869.040727 | G134: 7308.0365 | H134: 8914.712625 | I134: 9877.308252 | J134: 9772.618797 | K134: 10004.04438
A135: LCR | B135: Latin America and the Caribbean
A136: LDC | B136: Least developed countries: UN classification | C136: 409.8962742 | D136: 466.9381917 | E136: 561.1414912 | F136: 676.1704704 | G136: 653.8745576 | H136: 713.3679398 | I136: 786.3359047 | J136: 815.1526562 | K136: 863.1911997
A137: LIC | B137: Low income | C137: 339.0632304 | D137: 363.5412674 | E137: 418.0520488 | F137: 484.9692191 | G137: 506.8467654 | H137: 537.6554227 | I137: 584.8824194 | J137: 634.8753143 | K137: 676.8918618
A138: LIE | B138: Liechtenstein | C138: 105306.7466 | D138: 113873.925 | E138: 130348.5591 | F138: 138536.7578 | G138: 134617.3796
A139: LKA | B139: Sri Lanka | C139: 1242.40435 | D139: 1423.477215 | E139: 1614.41111 | F139: 2013.911088 | G139: 2057.113672 | H139: 2400.015575 | I139: 2835.689967 | J139: 2921.736345 | K139: 3279.89139 | L139: SEAR | M139: SEARO B | N139: Lower middle
A140: LMC | B140: Lower middle income | C140: 900.1001282 | D140: 1053.75606 | E140: 1281.315116 | F140: 1403.290876 | G140: 1414.03948 | H140: 1755.436638 | I140: 1956.069041 | J140: 1995.271255 | K140: 2044.001925
A141: LMY | B141: Low & middle income | C141: 1719.782639 | D141: 1996.490309 | E141: 2427.770199 | F141: 2856.043466 | G141: 2812.925237 | H141: 3365.349033 | I141: 3855.895925 | J141: 4014.994748 | K141: 4208.133719
A142: LSO | B142: Lesotho | C142: 710.5483628 | D142: 736.360043 | E142: 816.8001863 | F142: 826.8271068 | G142: 858.7345934 | H142: 1083.012065 | I142: 1225.589238 | J142: 1134.85021 | K142: 1074.848618 | L142: AFR | M142: AFRO E | N142: Low
A143: LTU | B143: Lithuania | C143: 7851.042105 | D143: 9249.909296 | E143: 12170.35217 | F143: 14832.68815 | G143: 11713.9 | H143: 11852.1696 | I143: 14227.68554 | J143: 14172.28123 | K143: 15537.91894 | L143: EUR | M143: EURO C | N143: Upper middle
A144: LUX | B144: Luxembourg | C144: 80925.21999 | D144: 90015.54662 | E144: 106919.6046 | F144: 112028.5749 | G144: 99281.71869 | H144: 102678.7979 | I144: 111913.1844 | J144: 103858.8808 | K144: 111161.6877 | L144: EUR | M144: EURO A | N144: High
A145: LVA | B145: Latvia | C145: 7165.377699 | D145: 8986.401376 | E145: 13073.381 | F145: 15463.66028 | G145: 12082.06368 | H145: 11446.50818 | I145: 13827.36026 | J145: 13946.96589 | K145: 15375.44564 | L145: EUR | M145: EURO C | N145: Upper middle
A146: MAC | B146: Macao SAR, China | C146: 25189.77936 | D146: 30363.62373 | E146: 36606.78267 | F146: 40847.05249 | G146: 40859.98718 | H146: 53045.87903 | I146: 67062.45318 | J146: 77196.13879 | K146: 91376.02254 | L146: WPR | M146: WPRO B | N146: Lower middle
A147: MAF | B147: St. Martin (French part)
A148: MAR | B148: Morocco | C148: 1948.201997 | D148: 2128.074688 | E148: 2416.263549 | F148: 2827.287803 | G148: 2861.027067 | H148: 2822.733739 | I148: 3044.107888 | J148: 2902.329958 | K148: 3108.647304 | L148: EMR | M148: EMRO D | N148: Lower middle
A149: MCA | B149: Mexico and Central America
A150: MCO | B150: Monaco | C150: 126599.4033 | D150: 135688.7999 | E150: 170632.9562 | F150: 193892.3223 | G150: 153042.3496 | H150: 145229.8379 | I150: 163025.859
A151: MDA | B151: Moldova | C151: 831.1591092 | D151: 950.6988847 | E151: 1230.809811 | F151: 1695.972811 | G151: 1525.526119 | H151: 1631.535832 | I151: 1970.840003 | J151: 2046.536787 | K151: 2229.623304 | L151: EUR | M151: EURO C | N151: Low
A152: MDG | B152: Madagascar | C152: 275.4767076 | D152: 292.956519 | E152: 379.0664996 | F152: 472.3793998 | G152: 417.178526 | H152: 412.9590521 | I152: 454.5417973 | J152: 443.2018479 | K152: 470.9540374 | L152: AFR | M152: AFRO D | N152: Low
A153: MDV | B153: Maldives | C153: 3335.195 | D153: 4304.056158 | E153: 5002.542049 | F153: 6027.324271 | G153: 6208.59551 | H153: 6552.484491 | I153: 6515.737026 | J153: 6243.844746 | K153: 6665.767695 | L153: SEAR | M153: SEARO D | N153: Lower middle
A154: MEA | B154: Middle East & North Africa (all income levels) | C154: 4298.868849 | D154: 4956.410718 | E154: 5738.676756 | F154: 7095.758519 | G154: 6190.334357 | H154: 7086.17768 | I154: 8304.317402 | J154: 8754.365229 | K154: 8482.869984
A155: MEX | B155: Mexico | C155: 7823.825498 | D155: 8622.586888 | E155: 9190.492412 | F155: 9559.814477 | G155: 7690.190507 | H155: 8920.689016 | I155: 9802.894353 | J155: 9817.837489 | K155: 10307.28304 | L155: AMR | M155: AMRO B | N155: Upper middle
A156: MHL | B156: Marshall Islands | C156: 2642.376249 | D156: 2752.323769 | E156: 2871.313853 | F156: 2920.198357 | G156: 2895.641627 | H156: 3112.840467 | I156: 3251.738261 | J156: 3291.789554 | K156: 3324.847057 | L156: WPR | M156: WPRO B | N156: Lower middle
A157: MIC | B157: Middle income | C157: 1936.867513 | D157: 2255.266635 | E157: 2749.018458 | F157: 3238.71991 | G157: 3189.391929 | H157: 3830.501841 | I157: 4399.181672 | J157: 4583.128273 | K157: 4808.485742
A158: MKD | B158: Macedonia, FYR | C158: 2863.96318 | D158: 3133.319212 | E158: 3891.895346 | F158: 4685.620166 | G158: 4433.857082 | H158: 4442.299972 | I158: 4940.953345 | J158: 4548.155553 | K158: 4850.505311 | L158: EUR | M158: EURO B | N158: Lower middle
A159: MLI | B159: Mali | C159: 444.2846436 | D159: 496.7442831 | E159: 561.4963327 | F159: 665.0546888 | G159: 661.1317114 | H159: 673.6946614 | I159: 738.554478 | J159: 696.1823129 | K159: 715.133813 | L159: AFR | M159: AFRO D | N159: Low
A160: MLT | B160: Malta | C160: 14810.0352 | D160: 15766.09292 | E160: 18474.03817 | F160: 20895.7805 | G160: 19636.00628 | H160: 19695.25572 | I160: 22346.31841 | J160: 21129.98277 | K160: 22779.9105 | L160: EUR | M160: EURO A | N160: Upper middle
A161: MMR | B161: Myanmar
A162: MNA | B162: Middle East & North Africa (developing only) | C162: 2179.0183 | D162: 2495.527304 | E162: 3018.931597 | F162: 3748.296603 | G162: 3538.06321 | H162: 4014.69984 | I162: 4519.495772 | J162: 4697.815257 | K162: 4313.088548
A163: MNE | B163: Montenegro | C163: 3665.327437 | D163: 4370.597539 | E163: 5945.908404 | F163: 7335.897003 | G163: 6713.079304 | H163: 6636.070538 | I163: 7253.359249 | J163: 6514.148643 | K163: 7125.671987 | L163: EUR | M163: EURO B | N163: Lower middle
A164: MNG | B164: Mongolia | C164: 998.7563599 | D164: 1333.877158 | E164: 1631.90104 | F164: 2135.811338 | G164: 1715.363735 | H164: 2285.645378 | I164: 3181.104401 | J164: 3691.052262 | K164: 4056.397839 | L164: WPR | M164: WPRO B | N164: Low
A165: MNP | B165: Northern Mariana Islands
A166: MOZ | B166: Mozambique | C166: 313.1079297 | D166: 328.7073992 | E166: 362.4324248 | F166: 434.5301501 | G166: 414.110156 | H166: 386.9631655 | I166: 510.4634091 | J166: 570.4174896 | K166: 592.9827808 | L166: AFR | M166: AFRO E | N166: Low
A167: MRT | B167: Mauritania | C167: 694.3200828 | D167: 939.1562935 | E167: 1008.024395 | F167: 1107.318275 | G167: 860.9119949 | H167: 977.1505187 | I167: 1117.026355 | J167: 1042.822532 | K167: 1070.092977 | L167: AFR | M167: AFRO D | N167: Low
A168: MUS | B168: Mauritius | C168: 5054.318112 | D168: 5373.630551 | E168: 6182.200111 | F168: 7599.986676 | G168: 6928.972012 | H168: 7586.969533 | I168: 8749.579807 | J168: 8861.799618 | K168: 9209.578246 | L168: AFR | M168: AFRO D | N168: Upper middle
A169: MWI | B169: Malawi | C169: 213.1566745 | D169: 234.2123961 | E169: 265.9969075 | F169: 302.497319 | G169: 345.1947614 | H169: 359.5795268 | I169: 364.0877729 | J169: 266.5889656 | K169: 226.4551027 | L169: AFR | M169: AFRO E | N169: Low
A170: MYS | B170: Malaysia | C170: 5553.943582 | D170: 6179.658221 | E170: 7218.397454 | F170: 8460.357289 | G170: 7277.762756 | H170: 8754.24282 | I170: 10058.04302 | J170: 10432.06247 | K170: 10513.70807 | L170: WPR | M170: WPRO B | N170: Upper middle
A171: NAC | B171: North America | C171: 43503.39396 | D171: 45841.162 | E171: 47710.44331 | F171: 48217.92824 | G171: 46390.99875 | H171: 48276.86709 | I171: 50053.4334 | J171: 51826.47661 | K171: 53030.58792
A172: NAM | B172: Namibia | C172: 3582.27602 | D172: 3886.447923 | E172: 4246.678373 | F172: 4023.689623 | G172: 4070.032745 | H172: 5113.164852 | I172: 5614.92591 | J172: 5930.524946 | K172: 5461.527779 | L172: AFR | M172: AFRO E | N172: Lower middle
A173: NCL | B173: New Caledonia
A174: NER | B174: Niger | C174: 258.2817603 | D174: 266.5794323 | E174: 302.2664078 | F174: 366.6306792 | G174: 352.6851141 | H174: 359.801242 | I174: 388.3267312 | J174: 394.7758309 | K174: 412.5167708 | L174: AFR | M174: AFRO D | N174: Low
A175: NGA | B175: Nigeria | C175: 804.1523667 | D175: 1014.756968 | E175: 1130.879787 | F175: 1376.015915 | G175: 1090.746284 | H175: 2310.860518 | I175: 2507.682969 | J175: 2742.219341 | K175: 3005.513796 | L175: AFR | M175: AFRO D | N175: Low
A176: NIC | B176: Nicaragua | C176: 1158.997008 | D176: 1228.313126 | E176: 1332.878804 | F176: 1498.129321 | G176: 1459.212417 | H176: 1535.192323 | I176: 1676.257887 | J176: 1776.61014 | K176: 1851.111469 | L176: AMR | M176: AMRO D | N176: Low
A177: NLD | B177: Netherlands | C177: 39122.29108 | D177: 41458.94138 | E177: 47770.8339 | F177: 52951.05599 | G177: 48173.8825 | H177: 46773.35381 | I177: 49886.28451 | J177: 45960.51718 | K177: 47617.40116 | L177: EUR | M177: EURO A | N177: High
A178: NOC | B178: High income: nonOECD | C178: 10374.76726 | D178: 12178.56247 | E178: 14394.04794 | F178: 17203.11076 | G178: 13977.65484 | H178: 16387.006 | I178: 19639.15996 | J178: 20733.69137 | K178: 21357.27011
A179: NOR | B179: Norway | C179: 65767.01961 | D179: 72959.73009 | E179: 83556.29682 | F179: 95189.86593 | G179: 78457.38019 | H179: 86096.13602 | I179: 99091.0945 | J179: 99635.87453 | K179: 100818.5032 | L179: EUR | M179: EURO A | N179: High
A180: NPL | B180: Nepal | C180: 321.4550186 | D180: 352.8009747 | E180: 397.9040179 | F180: 477.9321764 | G180: 485.9551548 | H180: 595.7716261 | I180: 694.1411512 | J180: 699.0804821 | K180: 694.1047943 | L180: SEAR | M180: SEARO D | N180: Low
A181: NZL | B181: New Zealand | C181: 27526.38049 | D181: 26335.96219 | E181: 31997.46579 | F181: 30560.4248 | G181: 27562.17449 | H181: 32846.40669 | I181: 37192.64543 | J181: 38678.43012 | K181: 41555.74589 | L181: WPR | M181: WPRO A | N181: High
A182: OEC | B182: High income: OECD | C182: 34670.45886 | D182: 36267.80428 | E182: 39323.26652 | F182: 41275.37964 | G182: 38618.43138 | H182: 40114.39979 | I182: 42797.78077 | J182: 42627.00244 | K182: 42808.88815
A183: OED | B183: OECD members | C183: 30432.43634 | D183: 31866.85636 | E183: 34578.61823 | F183: 36309.06956 | G183: 33752.18332 | H183: 35185.24119 | I183: 37528.09812 | J183: 37342.41968 | K183: 37532.05201
A184: OMN | B184: Oman | C184: 12252.61288 | D184: 14405.09193 | E184: 16305.61341 | F184: 23421.35529 | G184: 18114.47826 | H184: 20983.90034 | I184: 23132.9389 | J184: 23623.85149 | K184: 22180.7848 | L184: EMR | M184: EMRO B | N184: Upper middle
A185: OSS | B185: Other small states | C185: 2937.213322 | D185: 3169.231369 | E185: 3644.734486 | F185: 4298.841918 | G185: 3630.705862 | H185: 4275.94187 | I185: 4954.142088 | J185: 4844.234885 | K185: 4839.30677
A186: PAK | B186: Pakistan | C186: 693.1766897 | D186: 853.0709659 | E186: 929.5874437 | F186: 1018.380734 | G186: 986.954123 | H186: 1023.195756 | I186: 1212.978046 | J186: 1255.191071 | K186: 1299.119127 | L186: EMR | M186: EMRO D | N186: Low
A187: PAN | B187: Panama | C187: 4594.481939 | D187: 4998.382679 | E187: 6050.327783 | F187: 7002.712834 | G187: 7169.857345 | H187: 7833.903551 | I187: 8895.184909 | J187: 9982.481568 | K187: 11036.80739 | L187: AMR | M187: AMRO B | N187: Upper middle
A188: PER | B188: Peru | C188: 2674.566364 | D188: 3123.509792 | E188: 3606.718153 | F188: 4240.352266 | G188: 4188.921339 | H188: 5075.034012 | I188: 5759.398972 | J188: 6423.814308 | K188: 6659.806409 | L188: AMR | M188: AMRO D | N188: Lower middle
A189: PHL | B189: Philippines | C189: 1200.938178 | D189: 1398.826978 | E189: 1680.551326 | F189: 1920.992155 | G189: 1831.974486 | H189: 2135.918407 | I189: 2357.570924 | J189: 2587.016762 | K189: 2764.584782 | L189: WPR | M189: WPRO B | N189: Lower middle
A190: PLW | B190: Palau | C190: 10359.80459 | D190: 10427.04842 | E190: 10515.88422 | F190: 10547.48579 | G190: 9742.546687 | H190: 9651.13574 | I190: 10549.23505 | J190: 11201.6305 | K190: 11810.08788 | L190: WPR | M190: WPRO B | N190: Upper middle
A191: PNG | B191: Papua New Guinea | C191: 804.0711094 | D191: 896.3948787 | E191: 989.3194596 | F191: 1222.793585 | G191: 1180.431925 | H191: 1382.143749 | I191: 1767.238662 | J191: 2184.163461 | K191: 2088.352257 | L191: WPR | M191: WPRO B | N191: Low
A192: POL | B192: Poland | C192: 7963.021208 | D192: 8958.012422 | E192: 11157.27319 | F192: 13886.47243 | G192: 11294.86775 | H192: 12303.66187 | I192: 13384.78217 | J192: 12720.95117 | K192: 13431.95095 | L192: EUR | M192: EURO B | N192: Upper middle
A193: PRI | B193: Puerto Rico | C193: 21959.32271 | D193: 22935.94115 | E193: 23664.88235 | F193: 24898.33884 | G193: 25768.73605 | H193: 26437.99218 | I193: 27220.80356 | J193: 27681.63558 | K193: 28528.9971 | L193: RESIDUAL | M193: RESIDUAL | N193: Upper middle
A194: PRK | B194: Korea, Dem. Rep.
A195: PRT | B195: Portugal | C195: 18265.43187 | D195: 19177.42991 | E195: 21980.70034 | F195: 23860.69114 | G195: 22153.08436 | H195: 21653.00142 | I195: 22532.50772 | J195: 20175.31131 | K195: 21035.01219 | L195: EUR | M195: EURO A | N195: High
A196: PRY | B196: Paraguay | C196: 1479.403778 | D196: 1772.635325 | E196: 2252.125336 | F196: 2967.30497 | G196: 2509.680462 | H196: 3100.835119 | I196: 3814.213163 | J196: 3680.232059 | K196: 4402.759159 | L196: AMR | M196: AMRO B | N196: Lower middle
A197: PSS | B197: Pacific island small states | C197: 2530.726387 | D197: 2626.835872 | E197: 2843.364036 | F197: 3064.127093 | G197: 2643.465405 | H197: 2906.369649 | I197: 3313.069579 | J197: 3517.730642 | K197: 3545.414574
A198: PYF | B198: French Polynesia
A199: QAT | B199: Qatar | C199: 54228.83171 | D199: 62920.64413 | E199: 69166.96005 | F199: 84812.64384 | G199: 62527.63527 | H199: 71510.18638 | I199: 88861.03584 | J199: 92632.68126 | K199: 93352.02408 | L199: EMR | M199: EMRO B | N199: High
A200: ROU | B200: Romania | C200: 4651.692261 | D200: 5789.244137 | E200: 8170.143463 | F200: 9949.354828 | G200: 8068.95673 | H200: 8139.146673 | I200: 9063.676031 | J200: 8437.43383 | K200: 9499.205679 | L200: EUR | M200: EURO B | N200: Lower middle
... 63 more rows

Sheet Regional Salaries (2005 Int$)
A1: Subregion | B1: Physican Salary | C1: Nurse Salary | D1: Health Worker Salary
A2: AFRO D | B2: 20091 | C2: 12409 | D2: 9399
A3: AFRO E | B3: 19892 | C3: 12285 | D3: 9306
A4: AMRO A | B4: 78977 | C4: 48777 | D4: 36946
A5: AMRO B | B5: 25945 | C5: 16024 | D5: 12137
A6: AMRO D | B6: 20054 | C6: 12386 | D6: 9382
A7: EMRO B | B7: 65194 | C7: 40265 | D7: 30498
A8: EMRO D | B8: 4934 | C8: 3047 | D8: 2308
A9: EURO A | B9: 100201 | C9: 61885 | D9: 46875
A10: EURO B | B10: 26254 | C10: 16215 | D10: 12282
A11: EURO C | B11: 21346 | C11: 13184 | D11: 9986
A12: SEARO B | B12: 11743 | C12: 7253 | D12: 5493
A13: SEARO D | B13: 16388 | C13: 10121 | D13: 7666
A14: WPRO A | B14: 66873 | C14: 41302 | D14: 31284
A15: WPRO B | B15: 23368 | C15: 14432 | D15: 10932

Sheet Int$ Conversion (2004-11)
A1: Code | B1: 2004 | C1: 2005 | D1: 2006 | E1: 2007 | F1: 2008 | G1: 2009 | H1: 2010 | I1: 2011
A2: AFG | B2: 15.41 | C2: 16.71 | D2: 16.75 | E2: 19.05 | F2: 22.51 | G2: 19.6 | H2: 21.77 | I2: 22.3
A3: ALB | B3: 56.21 | C3: 55.65 | D3: 54.33 | E3: 55.08 | F3: 54.81 | G3: 54.76 | H3: 56.52 | I3: 57.36
A4: DZA | B4: 39.51 | C4: 38.74 | D4: 38.4 | E4: 38.7 | F4: 39.09 | G4: 41.47 | H4: 42.4 | I4: 42.96
A5: AGO | B5: 59.28 | C5: 70.5 | D5: 77.39 | E5: 84.46 | F5: 91.48 | G5: 104.41 | H5: 117.59 | I5: 129.35
A6: ATG | B6: 2.09 | C6: 2.07 | D6: 2.04 | E6: 2.01 | F6: 2.04 | G6: 2.04 | H6: 2.07 | I6: 2.08
A7: ARG | B7: 1.28 | C7: 1.35 | D7: 1.45 | E7: 1.54
A8: ARM | B8: 201.55 | C8: 196.19 | D8: 195.55 | E8: 198.51 | F8: 208.28 | G8: 216.15 | H8: 230.06 | I8: 240.08
A9: AUS | B9: 1.44 | C9: 1.46 | D9: 1.5 | E9: 1.51 | F9: 1.53 | G9: 1.54 | H9: 1.56 | I9: 1.53
A10: AUT | B10: 0.89 | C10: 0.89 | D10: 0.88 | E10: 0.88 | F10: 0.87 | G10: 0.87 | H10: 0.86 | I10: 0.87
A11: AZE | B11: 0.33 | C11: 0.35 | D11: 0.37 | E11: 0.42 | F11: 0.49 | G11: 0.5 | H11: 0.52 | I11: 0.54
A12: BHS | B12: 0.9 | C12: 0.89 | D12: 0.88 | E12: 0.88 | F12: 0.88 | G12: 0.9 | H12: 0.9 | I12: 0.9
A13: BHR | B13: 0.32 | C13: 0.32 | D13: 0.32 | E13: 0.32 | F13: 0.32 | G13: 0.33 | H13: 0.33 | I13: 0.32
A14: BGD | B14: 24.62 | C14: 25.49 | D14: 26.37 | E14: 27.97 | F14: 29.34 | G14: 31.04 | H14: 33.02 | I14: 35.43
A15: BRB | B15: 1.39 | C15: 1.43 | D15: 1.49 | E15: 1.5 | F15: 1.57 | G15: 1.63 | H15: 1.7 | I15: 1.8
A16: BLR | B16: 711.8 | C16: 759.62 | D16: 787.64 | E16: 830.28 | F16: 918.23 | G16: 1040.8 | H16: 1103.22 | I16: 1638.72
A17: BEL | B17: 0.92 | C17: 0.92 | D17: 0.93 | E17: 0.92 | F17: 0.92 | G17: 0.91 | H17: 0.91 | I17: 0.9
A18: BLZ | B18: 1.46 | C18: 1.46 | D18: 1.48 | E18: 1.47 | F18: 1.51 | G18: 1.5 | H18: 1.49 | I18: 1.4
A19: BEN | B19: 270.04 | C19: 275.19 | D19: 276.67 | E19: 272.49 | F19: 283.27 | G19: 290.41 | H19: 292.32 | I19: 291.06
A20: BTN | B20: 18.13 | C20: 18.46 | D20: 18.78 | E20: 19.2 | F20: 20.03 | G20: 20.98 | H20: 22.09 | I20: 23.31
A21: BOL | B21: 2.52 | C21: 2.57 | D21: 2.6 | E21: 2.74 | F21: 3.01 | G21: 3.13 | H21: 3.15 | I21: 3.36
A22: BIH | C22: 0.87 | D22: 0.88 | E22: 0.89 | F22: 0.93 | G22: 0.91 | H22: 0.91 | I22: 0.9
A23: BWA | B23: 3.22 | C23: 3.38 | D23: 3.66 | E23: 3.81 | F23: 4.13 | G23: 4.48 | H23: 4.71 | I23: 4.98
A24: BRA | B24: 1.52 | C24: 1.57 | D24: 1.59 | E24: 1.6 | F24: 1.63 | G24: 1.71 | H24: 1.77 | I24: 1.83
A25: BRN | B25: 1.1 | C25: 1.08 | D25: 1.05 | E25: 1.03 | F25: 1.01 | G25: 1.02 | H25: 1.01 | I25: 1
A26: BGR | B26: 0.71 | C26: 0.73 | D26: 0.75 | E26: 0.77 | F26: 0.8 | G26: 0.81 | H26: 0.81 | I26: 0.79
A27: BFA | B27: 235.53 | C27: 242.42 | D27: 240.32 | E27: 233.12 | F27: 248.43 | G27: 255.82 | H27: 249.77 | I27: 248.8
A28: BDI | B28: 407.14 | C28: 447.04 | D28: 445.23 | E28: 468.99 | F28: 560.53 | G28: 624.31 | H28: 653.55 | I28: 695.23
A29: KHM | B29: 1570.39 | C29: 1615.3 | D29: 1660.95 | E29: 1738.72 | F29: 2093 | G29: 2086.57 | H29: 2134.94 | I29: 2182.99
A30: CMR | B30: 298.48 | C30: 294.5 | D30: 299.89 | E30: 294.26 | F30: 298.51 | G30: 308.69 | H30: 307.59 | I30: 306.94
A31: CAN | B31: 1.27 | C31: 1.26 | D31: 1.29 | E31: 1.28 | F31: 1.3 | G31: 1.31 | H31: 1.3 | I31: 1.29
A32: CPV | B32: 80.49 | C32: 78.17 | D32: 79.8 | E32: 81.01 | F32: 83.3 | G32: 84.42 | H32: 84.79 | I32: 85.87
A33: CAF | B33: 308.99 | C33: 307.47 | D33: 317.8 | E33: 311.85 | F33: 328.17 | G33: 340.94 | H33: 340.44 | I33: 334.32
A34: TCD | B34: 313.91 | C34: 327.57 | D34: 342.83 | E34: 303.41 | F34: 322.28 | G34: 355.62 | H34: 342.61 | I34: 315.87
A35: CHL | B35: 383.07 | C35: 387.36 | D35: 349.26 | E35: 353.17 | F35: 367.76 | G35: 374.56 | H35: 372.4 | I35: 378.12
A36: CHN | B36: 4.15 | C36: 4.09 | D36: 4.02 | E36: 4.09 | F36: 4.17 | G36: 4.16 | H36: 4.22 | I36: 4.32
A37: HKG | B37: 7.42 | C37: 7.24 | D37: 7.16 | E37: 7.1 | F37: 7.12 | G37: 7.19 | H37: 7.24 | I37: 7.39
A38: MAC | B38: 6.37 | C38: 6.43 | D38: 6.55 | E38: 6.72 | F38: 7.03 | G38: 7.14 | H38: 7.22 | I38: 7.41
A39: COL | B39: 1172.96 | C39: 1191.74 | D39: 1204.1 | E39: 1235.6 | F39: 1273.18 | G39: 1331.43 | H39: 1339.79 | I39: 1343.09
A40: COM | B40: 295.5 | C40: 294.41 | D40: 294.83 | E40: 299.46 | F40: 293.29 | G40: 307.18 | H40: 312.36 | I40: 305.43
A41: COG | B41: 376.66 | C41: 375.57 | D41: 387.62 | E41: 386.88 | F41: 399.9 | G41: 422.6 | H41: 436.56 | I41: 428.81
A42: CRI | B42: 253.45 | C42: 278.96 | D42: 301.24 | E42: 320.29 | F42: 349.86 | G42: 378.64 | H42: 393.62 | I42: 400.21
A43: CIV | B43: 324.24 | C43: 325.81 | D43: 323.42 | E43: 320.39 | F43: 328.01 | G43: 332.56 | H43: 332.67 | I43: 338.31
A44: HRV | B44: 4.32 | C44: 4.42 | D44: 4.57 | E44: 4.53 | F44: 4.45 | G44: 4.53 | H44: 4.5 | I44: 4.44
A45: CYP | B45: 0.79 | C45: 0.77 | D45: 0.76 | E45: 0.75 | F45: 0.73 | G45: 0.73 | H45: 0.73 | I45: 0.72
A46: CZE | B46: 15.3 | C46: 15.04 | D46: 14.95 | E46: 14.88 | F46: 16.01 | G46: 15.6 | H46: 15.57 | I46: 15.33
A47: COD | B47: 269.51 | C47: 316.23 | D47: 346.34 | E47: 393.79 | F47: 444.84
A48: DNK | B48: 8.99 | C48: 9.08 | D48: 8.87 | E48: 8.78 | F48: 8.65 | G48: 8.6 | H48: 8.57 | I48: 8.71
A49: DJI | B49: 108.11 | C49: 107.81 | D49: 108.08 | E49: 110.3 | F49: 118.92 | G49: 121.34 | H49: 124.1 | I49: 125.58
A50: DMA | B50: 1.82 | C50: 1.79 | D50: 1.78 | E50: 1.79 | F50: 1.83 | G50: 1.84 | H50: 1.86 | I50: 1.85
A51: DOM | B51: 20.24 | C51: 20.4 | D51: 21.25 | E51: 21.94 | F51: 23.37 | G51: 23.79 | H51: 24.89 | I51: 26.17
A52: ECU | B52: 0.51 | C52: 0.5 | D52: 0.5 | E52: 0.5 | F52: 0.52 | G52: 0.55 | H52: 0.56 | I52: 0.57
A53: EGY | B53: 1.99 | C53: 2.02 | D53: 2.11 | E53: 2.24 | F53: 2.55 | G53: 2.86 | H53: 3.14 | I53: 3.35
A54: SLV | B54: 0.54 | C54: 0.55 | D54: 0.55 | E54: 0.56 | F54: 0.58 | G54: 0.59 | H54: 0.58 | I54: 0.6
A55: GNQ | B55: 427.04 | C55: 436.29 | D55: 441.31 | E55: 441.1 | F55: 452.63 | G55: 475.55 | H55: 504.32 | I55: 522.85
A56: ERI | C56: 6.73
A57: EST | B57: 0.55 | C57: 0.56 | D57: 0.52 | E57: 0.63 | F57: 0.64 | G57: 0.62 | H57: 0.62 | I57: 0.63
A58: ETH | B58: 2.55 | C58: 2.75 | D58: 2.99 | E58: 3.41 | F58: 4.74 | G58: 5.16 | H58: 5.49 | I58: 7.1
A59: FJI | B59: 1.56 | C59: 1.55 | D59: 1.54 | E59: 1.57 | F59: 1.62 | G59: 1.69 | H59: 1.76 | I59: 1.85
A60: FIN | B60: 1.07 | C60: 1.07 | D60: 1.06 | E60: 1.03 | F60: 1 | G60: 1 | H60: 1 | I60: 1.02
A61: FRA | B61: 0.95 | C61: 0.94 | D61: 0.93 | E61: 0.93 | F61: 0.92 | G61: 0.91 | H61: 0.9 | I61: 0.9
A62: GAB | B62: 442.4 | C62: 443.75 | D62: 423.82 | E62: 432.8 | F62: 438.74 | G62: 448.6 | H62: 447.82 | I62: 439.62
A63: GMB | B63: 10.2 | C63: 10.34 | D63: 10.23 | E63: 10.48 | F63: 10.54 | G63: 11.06 | H63: 11.43 | I63: 11.61
A64: GEO | B64: 0.75 | C64: 0.78 | D64: 0.83 | E64: 0.88 | F64: 0.93 | G64: 0.95 | H64: 1 | I64: 1.06
A65: DEU | B65: 0.91 | C65: 0.9 | D65: 0.88 | E65: 0.87 | F65: 0.86 | G65: 0.86 | H65: 0.85 | I65: 0.84
A66: GHA | B66: 0.4 | C66: 0.45 | D66: 0.48 | E66: 0.52 | F66: 0.58 | G66: 0.7 | H66: 0.76 | I66: 0.8
A67: GRC | B67: 0.76 | C67: 0.77 | D67: 0.77 | E67: 0.77 | F67: 0.76 | G67: 0.77 | H67: 0.78 | I67: 0.78
A68: GRD | B68: 2.04 | C68: 2.04 | D68: 2.06 | E68: 2.08 | F68: 2.17 | G68: 2.17 | H68: 2.21 | I68: 2.2
A69: GTM | B69: 4.3 | C69: 4.54 | D69: 4.69 | E69: 4.87 | F69: 5.22 | G69: 5.34 | H69: 5.45 | I69: 5.61
A70: GIN | B70: 1164.44 | C70: 1479.57 | D70: 1930.62 | E70: 2305.88 | F70: 2628.87 | G70: 2761.84 | H70: 3137.42 | I70: 3690.76
A71: GNB | B71: 284.45 | C71: 284.28 | D71: 280.78 | E71: 285.59 | F71: 303.8 | G71: 299.85 | H71: 302.44 | I71: 307.98
A72: GUY | B72: 101.7 | C72: 105.17 | D72: 108.59 | E72: 118.57 | F72: 123.43 | G72: 127.48 | H72: 128.04 | I72: 130.3
A73: HTI | B73: 17.3 | C73: 19.37 | D73: 21.21 | E73: 22.38 | F73: 24.9 | G73: 24.98 | H73: 25.98 | I73: 27.31
A74: HND | B74: 9.18 | C74: 9.66 | D74: 9.88 | E74: 10.27 | F74: 11.02 | G74: 11.67 | H74: 12.02 | I74: 12.44
A75: HUN | B75: 135.15 | C75: 136.48 | D75: 137.77 | E75: 143.97 | F75: 145.03 | G75: 143.18 | H75: 145.01 | I75: 146.45
A76: ISL | B76: 104.06 | C76: 104.18 | D76: 109.16 | E76: 112.05 | F76: 123.74 | G76: 139.86 | H76: 145.92 | I76: 149.52
A77: IND | B77: 15.47 | C77: 15.6 | D77: 16.04 | E77: 16.59 | F77: 17.31 | G77: 19.26 | H77: 21.23 | I77: 22.4
A78: IDN | B78: 3924.85 | C78: 4192.83 | D78: 4594.27 | E78: 4753.06 | F78: 5024.84 | G78: 5285.5 | H78: 5467.13 | I78: 5583.76
A79: IRN | B79: 2474.52 | C79: 2714.82 | D79: 2943.99 | E79: 3355.03 | F79: 4056.5 | G79: 4620.57 | H79: 5006.85 | I79: 5854.85
A80: IRQ | B80: 483.04 | C80: 639.87 | D80: 949.83 | E80: 830.52 | F80: 901.09 | G80: 966.46 | H80: 978.23
A81: IRL | B81: 1.09 | C81: 1.07 | D81: 1.07 | E81: 1.07 | F81: 1.08 | G81: 1.01 | H81: 0.96 | I81: 0.95
A82: ISR | B82: 4.02 | C82: 4.07 | D82: 4.19 | E82: 4.11 | F82: 4.32 | G82: 4.3 | H82: 4.34 | I82: 4.24
A83: ITA | B83: 0.91 | C83: 0.91 | D83: 0.9 | E83: 0.88 | F83: 0.85 | G83: 0.85 | H83: 0.84 | I83: 0.85
A84: JAM | B84: 38.88 | C84: 43.36 | D84: 45.62 | E84: 48.47 | F84: 56.96 | G84: 62.64 | H84: 69.4 | I84: 72.34
A85: JPN | B85: 150.55 | C85: 142.94 | D85: 138.11 | E85: 133.56 | F85: 129.06 | G85: 127.56 | H85: 123.06 | I85: 120.49
A86: JOR | B86: 0.49 | C86: 0.49 | D86: 0.51 | E86: 0.52 | F86: 0.58 | G86: 0.57 | H86: 0.59 | I86: 0.6
A87: KAZ | B87: 62.44 | C87: 64.96 | D87: 68.34 | E87: 73.6 | F87: 83.04 | G87: 89.42 | H87: 94.24 | I87: 98.98
A88: KEN | B88: 30.63 | C88: 32.68 | D88: 36.24 | E88: 38.67 | F88: 47.01 | G88: 51.54 | H88: 52.72 | I88: 58.27
A89: KIR | C89: 0.68
A90: KOR | B90: 886.22 | C90: 879.37 | D90: 873.32 | E90: 867.2 | F90: 882.09 | G90: 885.37 | H90: 891.52 | I90: 884.55
A91: KWT | B91: 0.28 | C91: 0.28 | D91: 0.28 | E91: 0.29 | F91: 0.3 | G91: 0.32 | H91: 0.32 | I91: 0.33
A92: KGZ | B92: 12.88 | C92: 13 | D92: 13.29 | E92: 14.24 | F92: 17.07 | G92: 18.32 | H92: 19.46 | I92: 21.97
A93: LAO | B93: 3609.9 | C93: 3741.62 | D93: 3871.25 | E93: 3934.09 | F93: 4077.69 | G93: 4093.68 | H93: 4268.57 | I93: 4451.47
A94: LVA | B94: 0.32 | C94: 0.34 | D94: 0.36 | E94: 0.4 | F94: 0.44 | G94: 0.43 | H94: 0.42 | I94: 0.42
A95: LBN | C95: 1107.12
A96: LSO | B96: 3.43 | C96: 3.43 | D96: 3.52 | E96: 3.7 | F96: 3.94 | G96: 4.25 | H96: 4.33 | I96: 4.41
A97: LBR | B97: 27.23 | C97: 29.18 | D97: 30.35 | E97: 32.87 | F97: 37.19 | G97: 40.09 | H97: 42.32 | I97: 44.51
A98: LBY | B98: 0.86 | C98: 0.85 | D98: 0.84 | E98: 0.86 | F98: 0.92 | G98: 0.94 | H98: 0.95
A99: LTU | B99: 1.6 | C99: 1.64 | D99: 1.7 | E99: 1.78 | F99: 1.89 | G99: 1.87 | H99: 1.83 | I99: 1.85
A100: LUX | B100: 0.89 | C100: 0.97 | D100: 0.96 | E100: 0.99 | F100: 0.97 | G100: 0.98 | H100: 0.99 | I100: 1
A101: MDG | B101: 659.88 | C101: 756.38 | D101: 811.68 | E101: 870.45 | F101: 915.59 | G101: 1001.16 | H101: 1076.08 | I101: 1142.07
A102: MWI | B102: 50.99 | C102: 56.92 | D102: 62.85 | E102: 65.97 | F102: 69.06 | G102: 75.14 | H102: 79.41 | I102: 82.85
A103: MYS | B103: 2.12 | C103: 2.11 | D103: 2.12 | E103: 2.11 | F103: 2.14 | G103: 2.16 | H103: 2.16 | I103: 2.16
A104: MDV | C104: 9.74 | D104: 9.76 | E104: 10.19 | F104: 11.01 | G104: 11.49 | H104: 12.06 | I104: 13.19
A105: MLI | B105: 281.5 | C105: 289.68 | D105: 284.96 | E105: 280.97 | F105: 295.39 | G105: 302.97 | H105: 301.38 | I105: 300.5
A106: MLT | B106: 0.63 | C106: 0.63 | D106: 0.64 | E106: 0.65 | F106: 0.64 | G106: 0.63 | H106: 0.63 | I106: 0.63
A107: MRT | B107: 115.88 | C107: 125.67 | D107: 129.34 | E107: 134.87 | F107: 139.43 | G107: 143.03 | H107: 149.57 | I107: 153.22
A108: MUS | B108: 17.46 | C108: 17.73 | D108: 18.7 | E108: 19.79 | F108: 20.91 | G108: 21.52 | H108: 21.79 | I108: 22.5
A109: MEX | B109: 7.75 | C109: 7.65 | D109: 7.75 | E109: 7.91 | F109: 8.16 | G109: 8.58 | H109: 8.75 | I109: 8.68
A110: FSM | C110: 0.66
A111: MNG | B111: 479.27 | C111: 522.49 | D111: 531.95 | E111: 563.98 | F111: 679.22 | G111: 724.45 | H111: 785.1 | I111: 833.25
A112: MNE | C112: 0.48 | D112: 0.48 | E112: 0.48 | F112: 0.5 | G112: 0.48 | H112: 0.48 | I112: 0.48
A113: MAR | B113: 5.64 | C113: 5.51 | D113: 5.51 | E113: 5.47 | F113: 5.46 | G113: 5.54 | H113: 5.5 | I113: 5.38
A114: MOZ | B114: 11.22 | C114: 11.63 | D114: 12.75 | E114: 13.41 | F114: 14.25 | G114: 14.77 | H114: 16.37 | I114: 17.51
A115: MMR | B115: 251.77 | C115: 266.32 | D115: 309.58 | E115: 406.42 | F115: 496.29 | G115: 505.39 | H115: 535.61 | I115: 545.3
A116: NAM | B116: 5.12 | C116: 5.06 | D116: 5.15 | E116: 5.35 | F116: 5.68 | G116: 6.2 | H116: 6.38 | I116: 6.49
A117: NPL | B117: 25.61 | C117: 26.47 | D117: 27.58 | E117: 28.45 | F117: 30.38 | G117: 34.03 | H117: 36.82 | I117: 39.11
A118: NLD | B118: 0.92 | C118: 0.91 | D118: 0.89 | E118: 0.88 | F118: 0.86 | G118: 0.87 | H118: 0.88 | I118: 0.88
A119: NZL | B119: 1.57 | C119: 1.6 | D119: 1.59 | E119: 1.58 | F119: 1.57 | G119: 1.6 | H119: 1.6 | I119: 1.61
A120: NIC | B120: 6.88 | C120: 7.3 | D120: 7.72 | E120: 8.34 | F120: 9.62 | G120: 10.01 | H120: 10.39 | I120: 10.88
A121: NER | B121: 256.41 | C121: 267.33 | D121: 259.08 | E121: 252.03 | F121: 270.15 | G121: 282.79 | H121: 280.47 | I121: 279.88
A122: NGA | B122: 68.93 | C122: 78.58 | D122: 82.4 | E122: 84.43 | F122: 90.72 | G122: 101.55 | H122: 113.61 | I122: 122.08
A123: NOR | B123: 9.8 | C123: 9.78 | D123: 9.67 | E123: 9.46 | F123: 9.6 | G123: 9.83 | H123: 9.81 | I123: 9.88
A124: OMN | B124: 0.29 | C124: 0.29 | D124: 0.29 | E124: 0.29 | F124: 0.32 | G124: 0.33 | H124: 0.34 | I124: 0.34
A125: PAK | B125: 19.64 | C125: 20.71 | D125: 21.65 | E125: 22.65 | F125: 26.24 | G125: 29.93 | H125: 33.53 | I125: 36.38
A126: PLW | C126: 0.68
A127: PAN | B127: 0.61 | C127: 0.61 | D127: 0.6 | E127: 0.61 | F127: 0.64 | G127: 0.66 | H127: 0.67 | I127: 0.69
A128: PNG | B128: 1.71 | C128: 1.69 | D128: 1.67 | E128: 1.64 | F128: 1.75 | G128: 1.88 | H128: 1.96 | I128: 2.06
A129: PRY | B129: 2059.77 | C129: 2127.8 | D129: 2259 | E129: 2374.89 | F129: 2519.33 | G129: 2593.85 | H129: 2670.69 | I129: 2802.65
A130: PER | B130: 1.68 | C130: 1.65 | D130: 1.63 | E130: 1.62 | F130: 1.65 | G130: 1.7 | H130: 1.7 | I130: 1.7
A131: PHL | B131: 23.47 | C131: 24.18 | D131: 24.71 | E131: 24.72 | F131: 25.77 | G131: 26.93 | H131: 27.53 | I131: 27.92
A132: POL | B132: 2.09 | C132: 2.13 | D132: 2.09 | E132: 2.01 | F132: 2.02 | G132: 2.03 | H132: 1.99 | I132: 1.99
A133: PRT | B133: 0.76 | C133: 0.74 | D133: 0.73 | E133: 0.74 | F133: 0.73 | G133: 0.72 | H133: 0.71 | I133: 0.71
A134: QAT | B134: 3.46 | C134: 3.64 | D134: 3.94 | E134: 4.36 | F134: 4.83 | G134: 4.61 | H134: 4.43 | I134: 4.38
A135: MDA | B135: 4.47 | C135: 4.83 | D135: 5.28 | E135: 5.75 | F135: 6.26 | G135: 6.27 | H135: 6.62 | I135: 6.92
A136: ROU | B136: 1.52 | C136: 1.71 | D136: 1.75 | E136: 1.83 | F136: 1.93 | G136: 1.97 | H136: 2.04 | I136: 2.08
A137: RUS | B137: 12.31 | C137: 13.39 | D137: 13.63 | E137: 14.35 | F137: 15.07 | G137: 16.05 | H137: 16.75 | I137: 17.08
A138: RWA | B138: 224.54 | C138: 236.75 | D138: 249.72 | E138: 264.84 | F138: 294.44 | G138: 326.12 | H138: 328.27 | I138: 336.27
A139: KNA | B139: 2.16 | C139: 2.16 | D139: 2.27 | E139: 2.31 | F139: 2.34 | G139: 2.4 | H139: 2.37 | I139: 2.43
A140: LCA | B140: 1.89 | C140: 1.9 | D140: 1.88 | E140: 1.89 | F140: 1.95 | G140: 1.92 | H140: 1.95 | I140: 1.94
A141: VCT | B141: 1.78 | C141: 1.78 | D141: 1.78 | E141: 1.85 | F141: 1.96 | G141: 1.98 | H141: 1.97 | I141: 1.99
A142: WSM | B142: 1.9 | C142: 1.87 | D142: 1.88 | E142: 1.93 | F142: 2.08 | G142: 2.22 | H142: 2.2 | I142: 2.24
A143: STP | B143: 5613.05 | C143: 6363.13 | D143: 7677.93 | E143: 9522.29 | F143: 11447.65 | G143: 13336.55 | H143: 14813.15 | I143: 16073.81
A144: SAU | B144: 2.98 | C144: 2.9 | D144: 2.87 | E144: 2.91 | F144: 3.08 | G144: 3.25 | H144: 3.37 | I144: 3.43
A145: SEN | B145: 303.2 | C145: 298.24 | D145: 295.03 | E145: 303.64 | F145: 309.28 | G145: 307.13 | H145: 305.95 | I145: 306.63
A146: SRB | B146: 29.91 | C146: 33.6 | D146: 35.91 | E146: 38 | F146: 39.59 | G146: 42.3 | H146: 44.72 | I146: 48.3
A147: SYC | B147: 4.61 | C147: 4.5 | D147: 4.34 | E147: 4.45 | F147: 5.87 | G147: 7.76 | H147: 7.45 | I147: 7.41
A148: SLE | C148: 1396.21
A149: SGP | B149: 1.51 | C149: 1.47 | D149: 1.44 | E149: 1.43 | F149: 1.46 | G149: 1.48 | H149: 1.49 | I149: 1.52
A150: SVK | B150: 0.63 | C150: 0.62 | D150: 0.62 | E150: 0.61 | F150: 0.6 | G150: 0.59 | H150: 0.58 | I150: 0.59
A151: SVN | B151: 0.65 | C151: 0.66 | D151: 0.58 | E151: 0.68 | F151: 0.69 | G151: 0.71 | H151: 0.71 | I151: 0.7
A152: SLB | B152: 3.78 | C152: 3.92 | D152: 4.22 | E152: 4.42 | F152: 4.99 | G152: 5.37 | H152: 5.34 | I152: 5.55
A153: ZAF | B153: 4.57 | C153: 4.57 | D153: 4.63 | E153: 4.83 | F153: 5.18 | G153: 5.57 | H153: 5.72 | I153: 5.82
A154: ESP | B154: 0.79 | C154: 0.79 | D154: 0.79 | E154: 0.8 | F154: 0.79 | G154: 0.79 | H154: 0.79 | I154: 0.79
A155: LKA | B155: 37.08 | C155: 40.04 | D155: 42.67 | E155: 48.06 | F155: 56.73 | G155: 58.91 | H155: 61.56 | I155: 63.68
A156: PSE | B156: 2.13 | C156: 2.13 | D156: 2.14 | E156: 2.12 | F156: 2.25 | G156: 2.32
A157: SDN | B157: 1.18 | C157: 1.24 | D157: 1.28 | E157: 1.35 | F157: 1.48 | G157: 1.65 | H157: 1.84
A158: SUR | B158: 1.73 | C158: 1.83 | D158: 1.98 | E158: 2.05 | F158: 2.26 | G158: 2.27 | H158: 2.38 | I158: 2.72
A159: SWZ | B159: 3.68 | C159: 3.73 | D159: 3.8 | E159: 4 | F159: 4.33 | G159: 4.67 | H159: 4.81 | I159: 4.94
A160: SWE | B160: 9.6 | C160: 9.6 | D160: 9.43 | E160: 9.18 | F160: 9.02 | G160: 9.23 | H160: 9.46 | I160: 9.3
A161: CHE | B161: 1.88 | C161: 1.85 | D161: 1.82 | E161: 1.76 | F161: 1.7 | G161: 1.68 | H161: 1.65 | I161: 1.61
A162: SYR | B162: 23.77 | C162: 24.65 | D162: 26.27 | E162: 26.54 | F162: 29.59 | G162: 30.56 | H162: 31.39 | I162: 31.88
A163: TJK | B163: 0.89 | C163: 0.93 | D163: 0.99 | E163: 1.09 | F163: 1.26 | G163: 1.35 | H163: 1.41 | I163: 1.54
A164: THA | B164: 17.27 | C164: 17.47 | D164: 17.7 | E164: 17.61 | F164: 17.87 | G164: 17.78 | H164: 18.07 | I164: 18.19
A165: MKD | B165: 23.56 | C165: 23.03 | D165: 22.97 | E165: 23.44 | F165: 23.67 | G165: 22.44 | H165: 22.73 | I165: 23.65
A166: TLS | B166: 0.5 | C166: 0.49 | D166: 0.49 | E166: 0.53 | F166: 0.56 | G166: 0.56 | H166: 0.59 | I166: 0.65
A167: TGO | B167: 273.25 | C167: 282.26 | D167: 279.52 | E167: 274.38 | F167: 287.18 | G167: 293.84 | H167: 294.4 | I167: 295.58
A168: TON | B168: 1.25 | C168: 1.31 | D168: 1.35 | E168: 1.39 | F168: 1.48 | G168: 1.51 | H168: 1.54 | I168: 1.58
A169: TTO | B169: 4.46 | C169: 4.61 | D169: 4.84 | E169: 5.08 | F169: 5.48 | G169: 5.88 | H169: 6.4 | I169: 6.52
A170: TUN | B170: 0.71 | C170: 0.7 | D170: 0.7 | E170: 0.71 | F170: 0.72 | G170: 0.74 | H170: 0.76 | I170: 0.77
A171: TUR | B171: 0.91 | C171: 0.97 | D171: 1.03 | E171: 1.08 | F171: 1.08 | G171: 1.11 | H171: 1.15 | I171: 1.22
A172: TKM | C172: 0.95
A173: UGA | B173: 709.9 | C173: 744.62 | D173: 774.08 | E173: 798.81 | F173: 861.98 | G173: 977.67 | H173: 1000.14 | I173: 1150.77
A174: UKR | B174: 1.56 | C174: 1.71 | D174: 1.81 | E174: 1.98 | F174: 2.39 | G174: 2.78 | H174: 2.99 | I174: 3.13
A175: ARE | C175: 2.7
A176: GBR | B176: 0.64 | C176: 0.65 | D176: 0.65 | E176: 0.67 | F176: 0.68 | G176: 0.7 | H176: 0.7 | I176: 0.72
A177: TZA | B177: 474.91 | C177: 482.45 | D177: 501.26 | E177: 521.6 | F177: 553.95 | G177: 623.42 | H177: 651.39 | I177: 711.6
A178: USA | B178: 1 | C178: 1 | D178: 1 | E178: 1 | F178: 1 | G178: 1 | H178: 1 | I178: 1
A179: URY | B179: 15.12 | C179: 15.31 | D179: 15.78 | E179: 16.59 | F179: 17.23 | G179: 18.52 | H179: 19.44 | I179: 20.37
A180: UZB | C180: 376.07
A181: VUT | B181: 70.87 | C181: 69.37 | D181: 68.57 | E181: 69.31 | F181: 69.97 | G181: 73.2 | H181: 74.04 | I181: 72.4
A182: VEN | C182: 1.25
A183: VNM | B183: 5652.62 | C183: 5919.89 | D183: 6158.46 | E183: 6484.85 | F183: 7688.73 | G183: 8260.51 | H183: 8847.42 | I183: 10178.57
A184: YEM | B184: 84.21 | C184: 91.06 | D184: 97.78 | E184: 102.59 | F184: 117.54 | G184: 124.34 | H184: 136 | I184: 153.46
A185: ZMB | B185: 2473.16 | C185: 2830.33 | D185: 2989.18 | E185: 3216.01 | F185: 3482.56 | G185: 3963.15 | H185: 4230.7 | I185: 4365.04

Sheet FOM (hidden)
B1: English | C1: Español
A2: 1 | B2: %pt increase in 12-month success rates. Effects for combinations involve adding effects for components | C2: aumento pt% en las tasas de éxito de 12 meses. Efectos de combinaciones implican la adición de efectos de los componentes
A3: 2 | B3: ICER at unity = cost per life year gained per 1 percentage point increase in 6 month cessation rate in UK for 35-54 age group, if the incremental cost of implementation per smoker treated is $1. A 3.5% temporal discounting is applied. The data is from Stapleton et al. (2011). ICER at unity may differ from country to country; we suggest to leave as is, unless you have good evidence that it is different, or want to do a sensitivity analysis. Higher ratios mean that stopping smoking is less beneficial in that country. | C3: ICER en unidad = coste por año de vida ganado por aumento de 1 punto porcentual en la tasa de abandono del hábito de 6 meses en el Reino Unido para el grupo de edad 35-54, si el costo incremental de la aplicación por fumador tratado es de $ 1. Se aplica un descuento temporal 3,5%. Los datos provienen de Stapleton et al. (2011). ICER en la unidad pueden diferir de un país a otro; le sugerimos dejar como está, a menos que tenga una buena evidencia de que es diferente, o quiere hacer un análisis de sensibilidad. Proporciones más altas indican que dejar de fumar es menos beneficioso en ese país .
A4: 3 | B4: The incremental cost-effectiveness ratio (ICER) is typically used in cost-effectiveness analyses. ICER is the ratio of the change in costs to incremental benefits of the intervention compared with the control. The equation for ICER is: ICER = (C1 – C2) / (E1 – E2) where C1 and E1 are the cost and effect in the intervention group and where C2 and E2 are the cost and effect in the control group. | C4: La Ratio Coste Efectividad Incremental (ICER) se suele utilizar en el análisis de costo-efectividad ICER es la relación entre la variación de los costos a los beneficios incrementales de la intervención, en comparación con el control de la ecuación para ICER es: ICER = (C1 - C2) / (E1 - E2) donde C1 y E1 son el costo y el efecto en el grupo de intervención y donde C2 y E2 son el costo y el efecto en el grupo de control
A5: 4 | B5: =CONCATENATE("Physician cost per hour is based on annual salary for a Medical Officer",IF(CurrentCountry<>""," (WHO Region "&'UI Controls'!B2&" )",""),", assuming 4 weeks paid holiday and 35 hour week, with 100% additional costs for accommodation, servicing and on-costs (2005 data).",CHAR(10),CHAR(10),"See http://www.who.int/choice/costs/prog_costs/ for more details.") -> Physician cost per hour is based on annual salary for a Medical Officer, assuming 4 weeks paid holiday and 35 hour week, with 100% additional costs for accommodation, servicing and on-costs (2005 data). See http://www.who.int/choice/costs/prog_costs/ for more details. | C5: Costo médico por hora se basa en el salario anual de un oficial médico, suponiendo 4 semanas de vacaciones pagadas y 35 horas semanales, con un 100% de los costos adicionales de alojamiento, mantenimiento y (datos de 2005) en los costos. Ver http://www.who.int/choice/costs/prog_costs/ para más detalles .
A6: 5 | B6: =CONCATENATE("Other health worker cost per hour is based on annual salary for a Registered Nurse",IF(CurrentCountry<>""," (WHO Region "&'UI Controls'!B2&" )",""),", assuming 4 weeks paid holiday and 35 h week with 100% additional costs for accommodation, servicing and on-costs (2005 data).",CHAR(10),CHAR(10),"See http://www.who.int/choice/costs/prog_costs/ for more details.") -> Other health worker cost per hour is based on annual salary for a Registered Nurse, assuming 4 weeks paid holiday and 35 h week with 100% additional costs for accommodation, servicing and on-costs (2005 data). See http://www.who.int/choice/costs/prog_costs/ for more details. | C6: Otros costes por hora de los trabajadores de la salud se basa en el salario anual de una enfermera registrada, asumiendo 4 semanas de vacaciones pagadas y 35 h semanas con el 100% de los costos adicionales para el alojamiento, el servicio y sobre-costos (datos de 2005). Ver http://www.who.int/choice/costs/prog_costs/ para más detalles .
A7: 6 | B7: Per capita GDP (2013) is taken from http://api.worldbank.org/v2/en/indicator/ny.gdp.pcap.pp.cd | C7: El PIB per cápita (2013) se toma de http://api.worldbank.org/v2/en/indicator/ny.gdp.pcap.pp.cd
A8: 7 | B8: - Physician hours per treatment is based on estimated contact time plus 100% for training and additional administrative work - Physician time for medications is based on side-effect profile that would need managing | C8: - Hora médicos por tratamiento se basa en la estimación de tiempo de contacto más el 100% para la formación y el trabajo administrativo adicional - Tiempo del médico para los medicamentos se basa en el perfil de efectos secundarios que habría que gesti
A9: 8 | B9: - Other Healrh Worker hours per treatment is based on estimated contact time plus 100% for training and additional administrative work | C9: - Otros horas Healrh trabajadores por tratamiento se basa en la estimación de tiempo de contacto más el 100% para la formación y el trabajo administrativo adicional
A10: 9 | B10: MATERIALS / DRUG UNIT COST: - Medication costs are based on actual prices or projected prices if the drug were to be available derived from costs where currently available - Text messaging costs are based on telecon costs plus set up costs spread over large number of users and promotion - Internet costs are based on hosting costs plus texting costs plus set up costs spread over large number of users and promotion | C10: COSTE MATERIALES UNIDAD / DROGAS: - El gasto en medicamentos se basan en los precios actuales o los precios proyectados si la droga fuera a estar disponible derivada de costos donde actualmente disponibles - Costes costos de los mensajes de texto se basan en los costos Telecon además establecieron extienden por gran número de usuarios y promoción - Los costos de Internet se basan en costes de hosting más mensajes de texto más costes de establecer los costos que se distribuyen en gran número de usuarios y la promoción
A11: 10 | B11: All costs are in international dollars - see conversion table: http://mdgs.un.org/unsd/mdg/SeriesDetail.aspx?srid=699 An international dollar has the same purchasing power in relation to gross domestic product as a US dollar has in the United States. Costs in local currency units are converted to international dollars using purchasing power parity (PPP) exchange rates. A PPP exchange rate is the number of units of a country's currency required to buy the same amounts of goods and services in the domestic market as US dollar would buy in the United States. An international dollar is, therefore, a hypothetical currency that is used as a means of translating and comparing costs from one country to the other using a common reference point, the US dollar. The PPP exchange rates used in this analysis were developed by WHO. | C11: Todos los costos son en dólares internacionales - ver tabla de conversión: http://mdgs.un.org/unsd/mdg/SeriesDetail.aspx?srid=699 Un dólar internacional tiene el mismo poder adquisitivo en relación con el producto interno bruto como un dólar estadounidense en los Estados Unidos. Los costos en unidades de moneda local se convierten a dólares internacionales utilizando las tasas de cambio de paridad del poder adquisitivo (PPA). Un tipo de cambio PPP es el número de unidades de la moneda de un país es necesario para comprar la misma cantidad de bienes y servicios en el mercado nacional como dólar compraría en los Estados Unidos. Un dólar internacional es, por lo tanto, una moneda hipotética que se utiliza como un medio de la traducción y la comparación de los costos de un país a otro utilizando un punto de referencia común, el dólar estadounidense. Los tipos de cambio PPA utilizados en este análisis fueron desarrollados por la OMS .
A12: 11 | B12: Name of WHO region | C12: Nombre de la región de la OMS
A13: 13 | B13: World Bank income category (July 2014, see http://siteresources.worldbank.org/DATASTATISTICS/Resources/CLASS.XLS) | C13: Banco Mundial categoría de ingresos (julio de 2014, ver http://siteresources.worldbank.org/DATASTATISTICS/Resources/CLASS.XLS)
A14: 12 | B14: Total combined cost of healthcare worker time (physician and other healthcare worker) required for intervention delivery; we recommend you use these figures unless you have better local data | C14: Costo total combinado de tiempo de los trabajadores de la salud (médicos y otros trabajadores de la salud) requerido para la entrega de intervención; le recomendamos que utilice estas cifras a menos que tenga mejores datos locales
A15: 15 | B15: Total combined cost of labour and drugs/materials required for intervention delivery | C15: Costo total combinado de trabajo y drogas / materiales necesarios para la entrega de intervención
A16: 16 | B16: If the ICER = per capita GDP, then affordability = 1 and any ratio of 1 or better should be considered as good value. An affordability value >1 is affordable | C16: Si el ICER = PIB per cápita, a continuación, la asequibilidad = 1 y cualquier relación de 1 o mejor debería considerarse como una buena relación. Un valor asequibilidad> 1 es asequible
A17: 17 | B17: Brief advice (details to follow) | C17: El consejo breve (detalles a seguir)
A18: 18 | B18: Behavioural support: in person (details to follow) | C18: El apoyo del comportamiento: en persona (detalles a seguir)
A19: 19 | B19: Behavioural support: telephone (details to follow) | C19: El apoyo del comportamiento: teléfono (detalles a seguir)
A20: 20 | B20: Text messaging (details to follow) | C20: Mensajes de texto (detalles a seguir)
A21: 21 | B21: Printed materials (details to follow) | C21: Los materiales impresos (detalles a seguir)
A22: 22 | B22: Single form NRT (details to follow) | C22: Forma individual NRT (detalles a seguir)
A23: 23 | B23: Bupropion (details to follow) | C23: Bupropion (detalles a seguir)
A24: 24 | B24: Nortriptyline (details to follow) | C24: La nortriptilina (detalles a seguir)
A25: 25 | B25: Varenicline (details to follow) | C25: Vareniclina (detalles a seguir)
A26: 26 | B26: Cytisine (details to follow) | C26: Citisina (detalles a seguir)
A27: 27 | B27: In person support+ single NRT (details to follow) | C27: En apoyo persona + individual NRT (detalles a seguir)
A28: 28 | B28: Dual NRT (details to follow) | C28: NRT Dual (detalles a seguir)
A29: 29 | B29: In person support+ dual NRT (details to follow) | C29: En apoyo persona + dual NRT (detalles a seguir)
A30: 99

Sheet Languages
A1: Label name | B1: English | C1: Español
A2: lbl_Tile_3 | B2: ABOUT | C2: ACERCA
A3: tmp_3 | B3: ABOUT | C3: ACERCA
A4: Label49 | B4: Acknowledgements: | C4: Agradecimientos:
A5: FOM_16 | B5: Affordability | C5: Asequibilidad
A6: lbl_Tile_2 | B6: AFFORDABILITY CALCULATOR | C6: ASEQUIBILIDAD CALCULADORA
A7: tmp_2 | B7: AFFORDABILITY CALCULATOR | C7: ASEQUIBILIDAD CALCULADORA
A8: lbl_MainTitle | B8: Affordability Calculator for healthcare interventions to promote and assist tobacco cessation v1.8 | C8: Asequibilidad Calculadora para las intervenciones de salud promover y ayudar a dejar el tabaco v1.8
A9: lbl_Currency | B9: All costs are in International Dollars. | C9: Todos los gastos están en dólares internacionales.
A10: lbl_Int_02 | B10: Behavioural support: in person | C10: Apoyo conductual en persona
A11: lbl_Int_03 | B11: Behavioural support: telephone | C11: Apoyo conductual teléfono
A12: lbl_EQ1 | B12: Brazil | C12: Brasil
A13: lbl_Int_01 | B13: Brief advice | C13: El consejo breve
A14: lbl_Int_07 | B14: Bupropion | C14: Bupropion
A15: lbl_EQ2 | B15: China | C15: China
A16: Label46 | B16: Citation: | C16: Cita:
A17: lbl_Convert | B17: Click to convert to local currency (2012 PPP): | C17: Haga clic para convertir a la moneda local (2012):
A18: Label51 | B18: Contact: | C18: Contacto:
A19: Label52 | B19: contact@email.com | C19: contact@email.com
A20: lbl_EQ11 | B20: Custom | C20: Costumbre
A21: lbl_Int_10 | B21: Cytisine | C21: Citisina
A22: lbl_EQ3 | B22: Czech Republic | C22: Checo República
A23: lbl_Int_12 | B23: Dual NRT | C23: NRT Dual
A24: FOM_01 | B24: Effect | C24: Efecto
A25: lbl_EQ4 | B25: Egypt | C25: Egipto
A26: Label53 | B26: Export User Guide to Word: | C26: Guía del usuario de las Exportaciones a la Palabra:
A27: FOM_06 | B27: GDP (per capita): | C27: PIB (per cápita):
A28: lbl_Tile_10 | B28: GO TO LEGACY SPREADSHEET | C28: IR A HOJA DE HERENCIA
A29: tmp_10 | B29: GO TO LEGACY SPREADSHEET | C29: IR A HOJA DE HERENCIA
A30: FOM_03 | B30: ICER | C30: ICER
A31: FOM_02 | B31: ICER at unity: | C31: ICER en la unidad:
A32: lbl_Import | B32: Import intervention values from a similar country: | C32: Valores de intervención de importación de un país parecido:
A33: lbl_Int_13 | B33: In person support & dual NRT | C33: En la persona de apoyo y de doble NRT
A34: lbl_Int_11 | B34: In person support & single NRT | C34: En la persona de apoyo y solo NRT
A35: FOM_13 | B35: Income Level: | C35: Nivel de ingresos:
A36: lbl_EQ5 | B36: India | C36: India
A37: lbl_CurrentCurrency | B37: Int$ | C37: Int $
A38: Label29 | B38: Intervention Name | C38: Nombre de Intervención
A39: FOM_12 | B39: Labour unit cost | C39: Costo unitario de trabajo
A40: FOM_09 | B40: Mtrls/drug unit cost | C40: Costo unitario de drogas etc
A41: lbl_EQ6 | B41: Nepal | C41: Nepal
A42: lbl_Int_08 | B42: Nortriptyline | C42: La nortriptilina
A43: FOM_05 | B43: Other Health Worker salary: | C43: Salario enfermera:
A44: FOM_08 | B44: Other Health Worker hrs | C44: Horas de enfermería
A45: Label37 | B45: pa | C45: año
A46: Label38 | B46: pa | C46: año
A47: Label39 | B47: ph | C47: /h
A48: Label40 | B48: ph | C48: /h
A49: FOM_04 | B49: Physician salary: | C49: Salario médico:
A50: FOM_07 | B50: Physician hrs | C50: Horas de médicos
A51: lbl_Int_05 | B51: Printed materials | C51: Los materiales impresos
A52: FOM_11 | B52: Region: | C52: Región:
A53: lbl_Reset | B53: Reset all values for this country: | C53: Reajustar todos los valores para este país:
A54: lbl_EQ7 | B54: Russian Federation | C54: Ruso Federación
A55: lbl_Int_06 | B55: Single form NRT | C55: Forma individual NRT
A56: lbl_EQ8 | B56: South Africa | C56: Sur África
A57: lbl_Int_04 | B57: Text messaging | C57: Los mensajes de texto
A58: Label36 | B58: This tool allows you to calculate the affordability, using a WHO definition, of tobacco cessation interventions in your country. These estimates can then be used as a basis for considering which interventions to prioritise. The tool uses data from the accompanying international review of efficacy and effectiveness and other standard sources: West R, Raw M, McNeill A, Stead L, Aveyard P, Britton J, Stapleton J, McRobbie H, Pokhrel S, Lester-George A, Borland R. Healthcare interventions to promote and assist tobacco cessation: a review of efficacy, effectiveness and affordability for use in national guideline development. 2014, manuscript in preparation. | C58: Esta herramienta le permite calcular la capacidad de pago, utilizando una definición de la OMS, de las intervenciones para dejar de fumar en su país. Estas estimaciones se pueden utilizar como una base para considerar que las intervenciones para priorizar. La herramienta utiliza datos de la revista internacional de acompañamiento de eficacia y efectividad y otras fuentes estándar: West R, Raw M, McNeill A, Stead L, Aveyard P, Britton J, Stapleton J, McRobbie H, Pokhrel S, Lester-George A, Borland R. Healthcare interventions to promote and assist tobacco cessation: a review of efficacy, effectiveness and affordability for use in national guideline development. 2014, manuscrito en preparación.
A59: Label45 | B59: Tool developed by: | C59: Herramienta desarrollado por:
A60: FOM_15 | B60: Total cost | C60: Costo total
A61: lbl_EQ9 | B61: United Kingdom | C61: Unido Reino
A62: lbl_EQ10 | B62: Uruguay | C62: Uruguay
A63: Label42 | B63: User Guide | C63: Guía del usuario
A64: lbl_Tile_1 | B64: USER GUIDE | C64: GUÍA DEL USUARIO
A65: tmp_1 | B65: USER GUIDE | C65: GUÍA DEL USUARIO
A66: Label43 | B66: USING THE CALCULATOR The tool presents treatment effectiveness based on the scientific literature (see accompanying review), physician or other health worker time expected to be taken to deliver the intervention and cost data taken from standard sources (see notes). All terms, assumptions and units are also explained in the notes. All costs are converted into international dollars using a standard formula. Furtehr guidance and notes are available by clicking on blue labels. Values in grey fields are locked and cannot be changed. Everything else can be amended if you have better data. We recommend that you do not change the default effect sizes, which are based on our review and the Cochrane reviews, unless you have better data. When data are updated, the tool calculates an affordability index. If the figure comes out at 1 or greater the intervention should be affordable in your country. The higher the number the more affordable it is. Unaffordable interventions are highlighted in red. The details have been pre-populated for a number of countries and these can be selected from the bottom. You can also select ‘Other’ to select a different country or define your own custom area; a variety of options are available: 1. Country - most world countries can be selected from the drop down menu. 2. World Bank income category - this is pre-populated for any countries in the drop-down menu. 3. WHO region - this is pre-populated for any countries in the drop-down menu; if a custom location is defined you will need to select a WHO sub-region. 4. Per capita GDP - this is pre-populated for any countries in the drop-down menu (World Bank). 5. Average annual/hourly salary of a doctor or equivalent ("Physician") - this figure can be a rough estimate and you can try different figures to see what difference it makes. The default values are based on averages for the relevant WHO sub-region. 6. Average annual salary of a nurse or other relevant or equivalent health worker ("Nurse") - the figure can be a rough estimate and you can try different figures to see what difference it makes. The default values are based on averages for the relevant WHO sub-region. 7. Typical cost of a course of NRT in your country. 8. Typical cost of a course of bupropion (Zyban or Wellbutrin) in your country. 9. Typical cost of a course of nortriptyline in your country (Aventyl and Norventyl are two brand names) If you do not know, leave it as it is. 10. Typical cost of a course of varenicline (Champix/Chantix). 11. Typical cost of a course of cytisine (Tabex is one of the brand names) where available. If you do not know it, leave as is. If you have information about the cost of text messaging or printed materials you can change those fields if you want to, otherwise we suggest you leave them as they are. USING THE RESULTS IN YOUR COUNTRY You can use this calculator with the effectiveness and affordability review as a tool to help develop national guidelines and to help develop a national cessation strategy. We recommend that at least initially you do this with the help of an expert (see below). These are just suggestions, that you could: • Identify interventions with affordability ratios better than 1 and use this as the basis for a discussion, including possibly with potential funders if you are not the funder, about which of these could realistically be introduced in your country, and with what priority. • The affordability table can give you a focus for this discussion. • You might for example want to decide: a) Which ones could you start to implement within the next year. b) Which ones are desirable but might take longer to implement, or may have to wait until more funds are available. c) Which ones are potentially so effective and low cost that funding should be urgently sought for them. d) Which ones are potentially so affordable that government might not need to pay for them at all – only facilitate their availability. | C66: USO DE LA CALCULADORA La herramienta presenta la efectividad del tratamiento basado en la literatura científica (ver acompañando a revisión), médico u otro profesional de la salud de tiempo que se espera tomar para entregar los datos de intervención y de costos tomados de fuentes estándar (ver notas). Todos los términos, las suposiciones y las unidades también se explican en las notas. Todos los gastos se convierten a dólares internacionales utilizando una fórmula estándar. Orientación Furtehr y notas haciendo clic en las etiquetas azules. Los valores en los campos grises están bloqueadas y no se pueden cambiar. Todo lo demás puede ser modificada si usted tiene mejores datos. Le recomendamos que no cambie el tamaño del efecto por defecto, que se basa en la revisión y la revisiones Cochrane, a menos que tenga mejores datos. Cuando se actualizan los datos, la herramienta calcula un índice de accesibilidad. Si la cifra sale a 1 o mayor la intervención debe estar al alcance de su país. Cuanto mayor sea el número, más asequible que es. Intervenciones inasequibles se resaltan en rojo. Los detalles han sido pre-poblado por un número de países y estos pueden ser seleccionados de la parte inferior. También puede seleccionar "Otros" para seleccionar un país diferente o definir su propia área personalizada; una variedad de opciones están disponibles: 1. País - la mayoría de países del mundo se puede seleccionar desde el menú desplegable. 2. categoría de ingresos del Banco Mundial - esto es completan previamente a cualquier país en el menú desplegable. 3. región de la OMS - esto es completan previamente a cualquier país en el menú desplegable; si se define una ubicación personalizada que tendrá que seleccionar un sub-región de la OMS. 4. El PIB per cápita - esto es completan previamente a cualquier país en el menú desplegable (Banco Mundial). 5. Salario medio anual / hora de un médico o equivalente ("Médico") - esta cifra puede ser una estimación aproximada y puede probar diferentes figuras para ver la diferencia que hace. Los valores por defecto se basan en promedios de la sub-región pertinente de la OMS. 6. Salario medio anual de una enfermera u otro profesional de la salud o titulación equivalente ("Nurse") - la figura puede ser un cálculo aproximado y puede probar diferentes figuras para ver la diferencia que hace. Los valores por defecto se basan en promedios de la sub-región pertinente de la OMS. 7. El costo típico de un curso de la NRT en su país. 8. El costo típico de un curso de bupropión (Zyban o Wellbutrin) en su país. 9. El costo típico de un curso de nortriptilina en su país (Aventyl y Norventyl son dos nombres de marca) Si usted no sabe, dejarlo como está. 10. El costo típico de un curso de la vareniclina (Champix / Chantix). 11. El costo típico de un curso de citisina (Tabex es uno de los nombres de marca) cuando estén disponibles. Si no lo sabes, dejar como está. Si usted tiene información sobre el costo de la mensajería de texto o materiales impresos que se pueden cambiar esos campos si quiere, de lo contrario nos sugieren que los deje como están. USO DE LOS RESULTADOS EN SU PAÍS Puede utilizar esta calculadora con el examen de la eficacia y la accesibilidad como una herramienta para ayudar a desarrollar las directrices nacionales y para ayudar a desarrollar una estrategia nacional de cesación. Le recomendamos que al menos inicialmente lo hace con la ayuda de un experto (ver más abajo). Estas son sólo sugerencias, que usted podría: • Identificar las intervenciones con mejores ratios de accesibilidad a 1 y lo utilice como base para una discusión, incluyendo posiblemente con financiadores potenciales si usted no es el financiador, sobre cuál de estos realista podría ser introducido en su país, y con qué prioridad. • La tabla de asequibilidad le puede dar un enfoque para esta discusión. • Es posible que, por ejemplo, que decidir: a) ¿Cuáles podrían empezar a poner en práctica en el próximo año. b) ¿Cuáles son deseables, pero podría tomar más tiempo para poner en práctica, o pueden tener que esperar hasta que haya más fondos disponibles. c) ¿Cuáles son potencialmente tan eficaz y de bajo costo que debería buscar financiación con urgencia para ellos. d) ¿Cuáles son potencialmente tan asequible que el gobierno no necesite pagar por ellos en absoluto - sólo facilitar su disponibilidad.
A67: lbl_Int_09 | B67: Varenicline | C67: Vareniclina
A68: Label48 | B68: Version 1.1,:July 2014. | C68: Versión 1.1,: 07 2014.
A69: Label54 | B69: LANGUAGE | C69: IDIOMA
A70: lbl_Save | B70: Save | C70: Guardar

Sheet Images (hidden)

Sheet UserGuideExp (hidden)
A1: Affordability Calculator for healthcare interventions to promote and assist tobacco cessation v1.1
A3: User Guide
A5: USING THE CALCULATOR
A7: The tool presents treatment effectiveness based on the scientific literature (see accompanying review), physician or other health worker time expected to be taken to deliver the intervention and cost data taken from standard sources (see notes). All terms, assumptions and units are also explained in the notes. All costs are converted into international dollars using a standard formula. Furtehr guidance and notes are available by clicking on blue labels.
A9: Values in grey fields are locked and cannot be changed. Everything else can be amended if you have better data. We recommend that you do not change the default effect sizes, which are based on our review and the Cochrane reviews, unless you have better data.
A11: When data are updated, the tool calculates an affordability index. If the figure comes out at 1 or greater the intervention should be affordable in your country. The higher the number the more affordable it is. Unaffordable interventions are highlighted in red.
A13: The details have been pre-populated for a number of countries and these can be selected from the bottom. You can also select ‘Other’ to select a different country or define your own custom area; a variety of options are available:
A15: 1. Country - most world countries can be selected from the drop down menu.
A16: 2. World Bank income category - this is pre-populated for any countries in the drop-down menu.
A17: 3. WHO region - this is pre-populated for any countries in the drop-down menu; if a custom location is defined you will need to select a WHO sub-region.
A18: 4. Per capita GDP - this is pre-populated for any countries in the drop-down menu (World Bank).
A19: 5. Average annual/hourly salary of a doctor or equivalent ("Physician") - this figure can be a rough estimate and you can try different figures to see what difference it makes. The default values are based on averages for the relevant WHO sub-region.
A20: 6. Average annual salary of a nurse or other relevant or equivalent health worker ("Nurse") - the figure can be a rough estimate and you can try different figures to see what difference it makes. The default values are based on averages for the relevant WHO sub-region.
A21: 7. Typical cost of a course of NRT in your country.
A22: 8. Typical cost of a course of bupropion (Zyban or Wellbutrin) in your country.
A23: 9. Typical cost of a course of nortriptyline in your country (Aventyl and Norventyl are two brand names). If you do not know, leave it as it is.
A24: 10. Typical cost of a course of varenicline (Champix/Chantix).
A25: 11. Typical cost of a course of cytisine (Tabex is one of the brand names) where available. If you do not know it, leave as is.
A27: If you have information about the cost of text messaging or printed materials you can change those fields if you want to, otherwise we suggest you leave them as they are.
A33: USING THE RESULTS IN YOUR COUNTRY
A35: You can use this calculator with the effectiveness and affordability review as a tool to help develop national guidelines and to help develop a national cessation strategy. We recommend that at least initially you do this with the help of an expert (see below).
A37: These are just suggestions, that you could:
A39: • Identify interventions with affordability ratios better than 1 and use this as the basis for a discussion, including possibly with potential funders if you are not the funder, about which of these could realistically be introduced in your country, and with what priority.
A40: • The affordability table can give you a focus for this discussion.
A41: • You might for example want to decide:
A42: a) Which ones could you start to implement within the next year.
A43: b) Which ones are desirable but might take longer to implement, or may have to wait until more funds are available.
A44: c) Which ones are potentially so effective and low cost that funding should be urgently sought for them.
A45: d) Which ones are potentially so affordable that government might not need to pay for them at all – only facilitate their availability.
